Cogmind - Beta 10.1 @@@ ROGUE MODE // 2021.06.22 @ 14:17:04 // Winter2019/RPGLIKE Player: Farfid Result: Assimilated 0b10! Performance ------------- Evolutions (9) 4500 Regions Visited (38) 7600 Robots Destroyed (1188) 5940 Value Destroyed (63622) 63622 Prototype IDs (95) 1900 Alien Tech Used (3) 600 Bonus (84868) 84868 TOTAL SCORE: 169030 Bonus ------- Triggered High Security 1000 High Alert Combat Kills 39506 Follower Combat Kills 1400 Network Hubs Disabled 400 Met Data Miner 300 Met Imprinter 300 Destroyed Z-Imprinter 1000 Exposed GOLEM Chamber 500 Met Warlord at Base 500 MAIN.C Attacked Warlord 500 Warlord Defense Kill 4040 Met R17 at Cetus 500 Found Hidden Lab 3000 Met R17 at Research 2000 Met Warlord at Research 2000 Invited to Help at Command 2000 Scanned by Researcher 500 Destroyed MAIN.C Guards 500 Met MAIN.C 5000 Destroyed MAIN.C Shell 5000 Destroyed MAIN.C 10000 Used 0b10 Conduit 2000 Met Warlord at Command 2000 Win 3000 Friendly Fire -2078 Cogmind --------- Core Integrity 1229/2200 Matter 300/300 Energy 1544/1600 System Corruption 2% Temperature Cool (14) Movement Hovering (41) Location 0b10 Command Parts ------- > --- POWER (2) -------- Improved Quantum Reactor Improved Quantum Reactor > --- PROPULSION (7) --- Improved Antigrav System Improved Antigrav System Improved Antigrav System Combat Antigrav System Combat Antigrav System Combat Linear Gravjet Combat Linear Gravjet > --- UTILITY (12) ----- Experimental Power Amplifier Experimental Energy Well Experimental Targeting Computer Experimental Melee Analysis Suite Experimental Core Analyzer Experimental Armor Integrity Analyzer Energy Filter Advanced Reaction Control System Experimental Powered Armor Advanced Hardlight Generator Improved System Restoration Module Long-range Tractor Beam > --- WEAPON (5) ------- Hypervelocity Multirail Blast Cannon Plasma Lance CR-A16's Behemoth Slayer > --- INVENTORY (6) ---- Nanoactuators Gamma Bomb Array Peak State ------------ > --- POWER ------------ Improved Quantum Reactor Improved Quantum Reactor > --- PROPULSION ------- Improved Antigrav System Improved Antigrav System Improved Antigrav System Antigrav Array Combat Linear Gravjet Combat Linear Gravjet > --- UTILITY ---------- Experimental Power Amplifier Experimental Energy Well Experimental Melee Analysis Suite Experimental Core Analyzer Experimental Armor Integrity Analyzer Energy Filter Nanoactuators Advanced Reaction Control System Centrium Light Armor Plating Experimental Powered Armor Advanced Hardlight Generator Long-range Tractor Beam > --- WEAPON ----------- Hypervelocity Multirail Blast Cannon Gamma Bomb Array CR-A16's Behemoth Slayer > --- INVENTORY -------- Inertial Stasis Machine Advanced Kinecellerator Improved System Restoration Module Plasma Lance [Rating: 223] Favorites ----------- Power Improved Quantum Reactor Engine Cooled Ion Engine Power Core Light Nuclear Core Reactor Improved Quantum Reactor Propulsion Improved Antigrav System Wheel Wheel Hover Unit Improved Antigrav System Flight Unit Impulse Thruster Array Utility Energy Filter Device Energy Filter Storage Experimental Energy Well Processor Experimental Armor Integrity Analyzer Hackware Ghost Barrier Protection Experimental Powered Armor Weapon Phasing Sabre Energy Gun Improved Lightning Gun Energy Cannon Potential Cannon Ballistic Gun Shotgun Ballistic Cannon Blast Cannon Launcher Gamma Bomb Array Impact Weapon Power Maul Slashing Weapon Phasing Sabre Piercing Weapon CR-A16's Behemoth Slayer Build | -11 -10 -10 -9 -9 -9 -8 -8 -8 -7 -7 -7 -7 -7 -6 -6 -6 -6 -6 -6 -6 -5 -5 -5 -5 -5 -4 -4 -4 -4 -4 -4 -3 -3 -3 -2 -2 -1 -1 ------- Run | Scr Mat Min Mat Min Exi Min Mat Sto Fac Low Low Zio Dee Pro Fac Was Fac Low Low Dat Pro Fac Upp Upp War Pro Fac Ext Cet Arc Hub Res Arm Lab Res Tes Acc Com Slots Evolved 22 | 3 . 1 1 . . . . 4 1 1 1 . 1 . . . . . . . 1 2 . . 1 . 1 . . . . . 2 . 1 . . 1 Power 1 | . . . . . . . . . . . . . . . . . . . . . . 1 . . . . . . . . . . . . . . . . Propulsion 6 | 1 . . . . . . . 2 . . . . . . . . . . . . . . . . 1 . . . . . . . 2 . . . . . Utility 11 | 1 . . 1 . . . . 2 1 . . . 1 . . . . . . . 1 1 . . . . 1 . . . . . . . 1 . . 1 Weapon 4 | 1 . 1 . . . . . . . 1 1 . . . . . . . . . . . . . . . . . . . . . . . . . . . Parts Attached 272 | 5 12 3 6 1 . . 1 19 14 8 3 7 7 . 1 . 9 1 . . 1 20 . . 11 2 3 2 1 . 5 2 25 8 13 17 1 64 Power 14 | 1 2 . . . . . . 1 1 1 . . 1 . . . . . . . . 2 . . 1 . . . . . . . . . 2 . . 2 Engine 4 | 1 1 . . . . . . 1 1 . . . . . . . . . . . . . . . . . . . . . . . . . . . . . Core 3 | . 1 . . . . . . . . 1 . . . . . . . . . . . 1 . . . . . . . . . . . . . . . . Reactor 7 | . . . . . . . . . . . . . 1 . . . . . . . . 1 . . 1 . . . . . . . . . 2 . . 2 Propulsion 68 | 2 3 . 2 . . . . 4 5 . . . . . . . 3 . . . . 8 . . 2 . . . . . . . 19 . 1 1 . 18 Treads . | . . . . . . . . . . . . . . . . . . . . . . . . . . . . . . . . . . . . . . . Leg . | . . . . . . . . . . . . . . . . . . . . . . . . . . . . . . . . . . . . . . . Wheel 5 | 2 3 . . . . . . . . . . . . . . . . . . . . . . . . . . . . . . . . . . . . . Hover 47 | . . . 2 . . . . 4 5 . . . . . . . 2 . . . . 8 . . 2 . . . . . . . 8 . . . . 16 Flight 16 | . . . . . . . . . . . . . . . . . 1 . . . . . . . . . . . . . . . 11 . 1 1 . 2 Utility 130 | . 4 . 1 1 . . . 7 3 5 2 4 6 . . . 5 1 . . 1 9 . . 7 2 3 2 1 . 4 1 5 3 7 13 1 32 Device 83 | . 3 . . . . . . 3 1 4 1 1 3 . . . 3 1 . . . 6 . . 4 1 1 1 1 . 4 . 5 2 6 9 . 23 Storage 11 | . . . . . . . . . . . . . 1 . . . . . . . 1 . . . 2 . 2 . . . . . . . . . . 5 Processor 16 | . 1 . . . . . . 1 1 . . 2 . . . . 1 . . . . 3 . . 1 1 . . . . . 1 . . 1 2 . 1 Hackware 2 | . . . . . . . . . . . . . . . . . 1 . . . . . . . . . . . . . . . . . . . 1 . Protection 18 | . . . 1 1 . . . 3 1 1 1 1 2 . . . . . . . . . . . . . . 1 . . . . . 1 . 2 . 3 Artifact . | . . . . . . . . . . . . . . . . . . . . . . . . . . . . . . . . . . . . . . . Weapon 60 | 2 3 3 3 . . . 1 7 5 2 1 3 . . 1 . 1 . . . . 1 . . 1 . . . . . 1 1 1 5 3 3 . 12 Energy Gun 4 | . . . . . . . . 2 . . . . . . . . . . . . . . . . . . . . . . . . . 2 . . . . Energy Cannon 1 | . . . . . . . . . . . . . . . . . . . . . . . . . . . . . . . . . . 1 . . . . Ballistic Gun 21 | 2 3 3 3 . . . 1 4 2 . . . . . . . . . . . . . . . . . . . . . . . . . . . . 3 Ballistic Cannon 1 | . . . . . . . . . . . . . . . . . . . . . . . . . . . . . . . . . . . . . . 1 Launcher 9 | . . . . . . . . 1 . 1 . . . . 1 . 1 . . . . 1 . . . . . . . . . . 1 1 1 1 . . Special Weapon . | . . . . . . . . . . . . . . . . . . . . . . . . . . . . . . . . . . . . . . . Impact Weapon 1 | . . . . . . . . . . 1 . . . . . . . . . . . . . . . . . . . . . . . . . . . . Slashing Weapon 10 | . . . . . . . . . 3 . . 2 . . . . . . . . . . . . . . . . . . . 1 . . . 2 . 2 Piercing Weapon 13 | . . . . . . . . . . . 1 1 . . . . . . . . . . . . 1 . . . . . 1 . . 1 2 . . 6 Special Melee Weapon . | . . . . . . . . . . . . . . . . . . . . . . . . . . . . . . . . . . . . . . . Unidentified Prototypes 54 | . . . . . . . . 5 1 1 . 2 5 . . . 2 . . . . 4 . . 6 . 1 . . . 1 1 1 6 3 7 1 7 Parts Lost 4 | . 1 . . . . . . . . . . . . . . . 1 . . . . . . . . . . . . . . . . . . 1 . 1 Power . | . . . . . . . . . . . . . . . . . . . . . . . . . . . . . . . . . . . . . . . Propulsion . | . . . . . . . . . . . . . . . . . . . . . . . . . . . . . . . . . . . . . . . Utility 2 | . 1 . . . . . . . . . . . . . . . 1 . . . . . . . . . . . . . . . . . . . . . Weapon 2 | . . . . . . . . . . . . . . . . . . . . . . . . . . . . . . . . . . . . 1 . 1 Highest Loss Streak 1 | . 1 . . . . . . . . . . . . . . . 1 . . . . . . . . . . . . . . . . . . 1 . 1 Average Slot Usage (%) 94 | . 82 100 88 100 100 100 100 100 98 99 100 100 99 100 100 100 100 100 100 100 100 99 100 100 97 95 95 95 95 95 94 90 85 77 83 83 84 91 Core 1 | . 5 12 11 11 11 11 11 5 . 2 6 6 1 . . . . . . . . 2 5 5 2 . . . . . . . . . . . . . Reactor 4 | . . . . . . . . . . . . . 3 5 5 5 5 5 5 5 5 6 5 5 4 4 4 4 4 4 4 4 4 4 7 8 8 7 Hover 19 | . . . 11 22 22 22 22 29 28 26 25 25 24 23 23 23 23 23 23 23 22 20 20 20 21 23 22 22 22 22 22 22 15 . . . . 18 Flight 2 | . . . . . . . . . . . . . . . . . . . . . . . . . . . . . . . . . 4 16 16 16 16 3 Device 23 | . 9 12 11 11 11 11 11 9 17 19 18 21 25 29 29 29 27 29 29 29 27 25 25 25 23 22 24 27 27 27 29 30 29 26 26 27 24 26 Storage 1 | . . . . . . . . . . . . . . . . . . . . . 4 5 5 5 4 4 4 4 4 4 1 . . . . . . 1 Processor 11 | . 2 12 11 11 11 11 11 8 6 6 6 9 11 11 11 11 11 11 11 11 11 13 15 15 14 14 13 13 13 13 13 13 12 12 15 12 12 12 Protection 3 | . . . 5 11 11 11 11 15 14 13 12 6 . . . . . . . . . . . . . . . . . . . . . 1 . 3 4 3 Ballistic Gun 5 | . 27 34 34 33 33 33 33 25 16 . . . . . . . . . . . . . . . . . . . . . . . . . . . . 1 Launcher 3 | . . . . . . . . . . 5 6 6 5 5 5 5 5 5 5 5 5 4 5 5 4 4 4 4 4 4 4 4 4 3 4 3 4 3 Impact Weapon 1 | . . . . . . . . . . 4 6 6 5 5 5 5 5 5 5 5 5 5 5 5 1 . . . . . . . . . . . . . Slashing Weapon 4 | . . . . . . . . . 5 15 12 12 11 11 11 11 11 11 11 11 11 10 10 10 9 9 9 9 9 9 7 3 4 4 4 4 4 . Piercing Weapon 4 | . . . . . . . . . . . 3 6 5 5 5 5 5 5 5 5 5 5 5 5 8 9 9 9 9 9 10 9 8 6 7 8 8 5 Naked Turns . | . . . . . . . . . . . . . . . . . . . . . . . . . . . . . . . . . . . . . . . Heaviest Build 134 | 5 9 11 22 22 22 22 22 28 38 62 47 51 50 50 50 50 50 51 51 51 52 60 53 53 83 75 85 85 85 85 86 86 85 91 91 91 91 134 Greatest Support 185 | 25 25 25 33 33 33 33 33 66 66 66 66 66 66 66 66 66 66 66 66 66 66 94 85 85 112 112 112 112 112 112 124 112 146 99 107 107 99 185 Greatest Overweight (x) 2 | . . . . . . . . . 1 . . . . . . . . . . . . 1 . . . . . . . . . . 2 . . . . . Average Overweight (x) . | . . . . . . . . . . . . . . . . . . . . . . . . . . . . . . . . . . . . . . . Largest Inventory Capacity 6 | 1 1 2 2 2 2 2 2 4 4 4 4 4 4 5 5 5 6 6 6 6 6 6 6 6 6 6 6 6 6 6 6 6 6 6 6 6 6 6 Average Capacity 5 | 1 1 1 2 2 2 2 2 3 4 4 4 4 4 4 5 5 5 6 6 6 6 6 6 6 6 6 6 6 6 6 6 6 6 6 6 6 6 6 Most Carried 6 | . 1 2 2 1 . . 2 4 4 4 4 4 4 5 5 5 6 6 6 6 6 6 6 6 6 6 6 6 6 6 6 6 6 6 6 6 6 6 Average Carried 4 | . . . . . . . 1 3 3 2 3 3 3 4 5 5 5 4 5 6 5 5 6 6 5 5 5 5 6 6 5 5 5 5 5 5 5 4 Final Capacity 6 | 1 1 2 2 2 2 2 2 4 4 4 4 4 4 5 5 5 6 6 6 6 6 6 6 6 6 6 6 6 6 6 6 6 6 6 6 6 6 6 Final Carried 6 | . . 2 1 . . . 2 4 3 3 4 4 4 5 5 5 5 6 6 6 6 6 6 6 6 6 5 6 6 6 6 6 6 6 6 6 6 2 Class Distribution -------------------- 50% | Scavenger-Mutant 14% | Gunner 8% | Hacker-Sprinter 8% | Mutant 6% | Sprinter 4% | Commander-Mutant Dominant Class ---------------- Mutant | -10/Materials Gunner | -10/Mines Gunner | -9/Materials Gunner | -9/Mines Gunner | -9/Exiles Gunner | -8/Mines Gunner | -8/Materials Gunner | -8/Storage Gunner | -7/Factory Mutant | -7/Lower Caves Scavenger-Mutant | -7/Lower Caves Scavenger-Mutant | -7/Zion Scavenger-Mutant | -7/Deep Caves Scavenger-Mutant | -6/Proximity Caves Scavenger-Mutant | -6/Factory Scavenger-Mutant | -6/Waste Scavenger-Mutant | -6/Factory Scavenger-Mutant | -6/Lower Caves Scavenger-Mutant | -6/Lower Caves Scavenger-Mutant | -6/Data Miner Scavenger-Mutant | -5/Proximity Caves Scavenger-Mutant | -5/Factory Scavenger-Mutant | -5/Upper Caves Scavenger-Mutant | -5/Upper Caves Scavenger-Mutant | -5/Warlord Scavenger-Mutant | -4/Proximity Caves Scavenger-Mutant | -4/Factory Commander-Mutant | -4/Extension Commander-Mutant | -4/Cetus Commander-Mutant | -4/Archives Commander-Mutant | -4/Hub_04(d) Gladiator | -3/Research Infiltrator-Gladiator | -3/Armory Infiltrator-Sprinter | -3/Lab Sprinter | -2/Research Sprinter | -2/Testing Hacker-Sprinter | -1/Access Scavenger-Mutant | -1/Command Resources | -11 -10 -10 -9 -9 -9 -8 -8 -8 -7 -7 -7 -7 -7 -6 -6 -6 -6 -6 -6 -6 -5 -5 -5 -5 -5 -4 -4 -4 -4 -4 -4 -3 -3 -3 -2 -2 -1 -1 ----------- Run | Scr Mat Min Mat Min Exi Min Mat Sto Fac Low Low Zio Dee Pro Fac Was Fac Low Low Dat Pro Fac Upp Upp War Pro Fac Ext Cet Arc Hub Res Arm Lab Res Tes Acc Com Matter Collected 14152 | 254 270 108 467 442 . 276 7 861 702 97 37 61 86 14 17 . 188 24 7 . 52 214 7 14 467 85 30 27 10 . 78 20 250 . 260 180 30 8510 Remotely 11194 | . 214 108 467 442 . 276 7 826 702 67 . . . . . . . . . . . . . . . . . . . . . . . . . . . 8085 Salvage Created 61453 | 75 571 299 809 602 . 337 79 1176 963 719 219 100 552 1147 833 . 1792 357 582 . 819 2270 113 315 2121 429 467 2383 444 134 921 1947 1568 . 2354 949 340 32667 Parts 2570 | 3 37 17 54 63 . 25 11 56 50 34 19 1 25 57 51 . 68 6 31 . 50 133 16 13 86 38 33 83 26 3 48 77 96 . 110 35 16 1099 Haulers Intercepted 37 | . 1 . 4 . . . . 6 2 1 . . . . 2 . 3 . . . . 4 . . . . 1 4 . . 4 3 . . 1 1 . . Recyclers Shooed 11 | . . . . . . . . 2 4 . . . . . . . 1 . . . . 1 . . . . . . . . . . . . . 1 . 2 Parts Field Recycled . | . . . . . . . . . . . . . . . . . . . . . . . . . . . . . . . . . . . . . . . Retrieved Matter . | . . . . . . . . . . . . . . . . . . . . . . . . . . . . . . . . . . . . . . . Parts Self-Destructed 292 | . . . . . . . . . . 32 21 1 . 48 . . . 6 31 . 48 . 14 5 50 36 . . . . . . . . . . . . Prevented 109 | . . . . . . . . . . . 2 . . 7 . . . . 3 . 10 . 2 8 74 3 . . . . . . . . . . . . Kills | -11 -10 -10 -9 -9 -9 -8 -8 -8 -7 -7 -7 -7 -7 -6 -6 -6 -6 -6 -6 -6 -5 -5 -5 -5 -5 -4 -4 -4 -4 -4 -4 -3 -3 -3 -2 -2 -1 -1 ------- Run | Scr Mat Min Mat Min Exi Min Mat Sto Fac Low Low Zio Dee Pro Fac Was Fac Low Low Dat Pro Fac Upp Upp War Pro Fac Ext Cet Arc Hub Res Arm Lab Res Tes Acc Com Combat Hostiles Destroyed 989 | . 15 5 15 24 . 16 5 14 19 16 9 . 9 24 10 . 24 3 15 . 22 36 6 4 37 17 12 22 8 1 10 24 28 . 29 7 2 501 Melee 410 | . . . . . . . . . 6 16 6 . 9 19 10 . 22 3 14 . 16 29 1 4 5 10 12 21 8 1 10 24 26 . 28 7 2 101 Guns 365 | . 15 5 15 24 . 16 5 14 13 . . . . . . . . . . . . . . . . . . . . . . . . . . . . 258 Cannons 38 | . . . . . . . . . . . . . . . . . . . . . . . . . . . . . . . . . . . . . . 38 AOE 124 | . . . . . . . . . . . 2 . . 2 . . 1 . 1 . 3 6 4 . 16 6 . . . . . . 2 . . . . 81 Classes Destroyed 29 | 1 6 2 1 1 . . 1 . 1 1 1 . 2 . 1 . . . . . . 1 . . 4 . . 1 . . . . . . 1 . . 4 Worker 33 | . . 1 1 1 . . . 1 1 . . . . . 1 . 2 . . . . 3 . . . . . . . . . 1 . . 1 . . 20 Builder 11 | . 1 . . 2 . . . 2 1 . . . . . 1 . . . . . . . . . . . . 3 . . 1 . . . . . . . Tunneler 3 | . . 1 . 1 . 1 . . . . . . . . . . . . . . . . . . . . . . . . . . . . . . . . Hauler 37 | . 1 . 4 . . . . 6 2 1 . . . . 2 . 3 . . . . 4 . . . . 1 4 . . 4 3 . . 1 1 . . Recycler 38 | 1 . 2 1 1 . . . 2 6 . . . . . . . 3 . . . . 3 . . . . . 4 . . . 1 . . 2 2 1 9 Carrier 2 | . . . . . . . . . . . . . . . . . . . . . . 1 . . . . . . . . . . . . . . . 1 Mechanic 11 | . . . . . . . . . . . . . . . 1 . . . . . . 2 . . . . . . . . . . . . . . . 8 Operator 11 | . 1 . . . . . 1 1 . . . . . . 1 . . . . . . 2 . . . . . 2 . . . . . . . 1 . 2 Drone 1 | . . . . . . . . . . . . . . . . . . . . . . . . . . . . . . . . . . . . . . 1 Watcher 39 | . 1 . . . . . . . . . . . . . 4 . . . . . . 3 . . . . . 1 2 . 4 4 5 . 2 2 2 9 Swarmer 204 | . 3 3 4 15 . 13 . . 6 3 6 . . 9 . . 3 1 7 . 7 9 5 . 1 12 7 6 . . 4 5 9 . 4 . . 62 Saboteur 34 | . . . . . . . . . . . . . . . . . . . . . . . . . 4 . . . . . . . 2 . . . . 28 Grunt 310 | . 12 2 6 8 . 3 2 5 7 8 2 . . 9 4 . 13 1 5 . 13 15 . 3 20 . 1 10 . . 1 12 1 . 2 5 . 140 Brawler 40 | . . . . . . . . . . 2 . . . 1 1 . 1 . . . . 1 . . 3 . . . . . . . . . . . . 31 Duelist 40 | . . . . 1 . . . 1 . 1 . . . . 1 . 1 . 1 . . 1 . . 2 . . 1 . . . 1 . . . . . 29 Protector 27 | . . . . . . . . . . . . . . . . . . . . . . . . . 2 . . . . . . . . . . . . 25 Sentry 60 | . . . 5 . . . 2 8 4 1 . . . 2 1 . 4 1 1 . 1 4 . 1 . 1 4 3 . 1 3 2 4 . 3 . . 4 Demolisher 14 | . . . . . . . . . . . . . . . . . . . . . . . . . . . . 1 . . . . . . 1 . . 12 Specialist 13 | . . . . . . . . . . . . . . . . . . . . . . . . . 1 . . . . . . . . . . . . 12 Hunter 98 | . . . . . . . 1 1 1 1 . . . 3 2 . 2 . . . . 4 . . 2 2 . . . . . 4 6 . 10 2 2 55 Programmer 78 | . . . . . . . . . 1 . . . . . 1 . . . 1 . . 1 . . 1 1 . . . . 2 . 6 . 2 . . 62 Behemoth 10 | . . . . . . . . . . . 1 . . . . . . . . . 1 1 1 . . 1 . 1 . . . . . . 1 . . 3 Cetus Guard 8 | . . . . . . . . . . . . . . . . . . . . . . . . . . . . . 8 . . . . . . . . . M Guard 2 | . . . . . . . . . . . . . . . . . . . . . . . . . . . . . . . . . . . . . . 2 Combat Programmer 2 | . . . . . . . . . . . . . . . . . . . . . . . . . . . . . . . . . . . . . . 2 Investigator 3 | . . . . . . . . . . . . . . . . . . . . . . . . . . . . . . . . . . . . . . 3 Striker 16 | . . . . . . . . . . . . . . . . . . . . . . . . . 1 . . . . . . . . . 4 . . 11 Executioner 19 | . . . . . . . . . . . . . . . . . . . . . . . . . . . . . . . . . . . 2 . . 17 Alpha 7 2 | . . . . . . . . . . . . . . . . . . . . . . . . . . . . . . . . . . . . . . 2 Z-Technician 5 | . . . . . . . . . . . . . 5 . . . . . . . . . . . . . . . . . . . . . . . . . Z-Light 5 | . . . . . . . . . . . . . 5 . . . . . . . . . . . . . . . . . . . . . . . . . Assembled 3 | . . . . . . . . . . . . . 3 . . . . . . . . . . . . . . . . . . . . . . . . . Thug 1 | . . . . . . . . . . . . . . . . . . . . . . . . . . . . . . . 1 . . . . . . . Martyr 2 | . . . . . . . . . . . . . . . . . . . . . . . . . . . . . . . . . . . . . . 2 Guerrilla 1 | . . . . . . . . . . . . . . . . . . . . . . . . . . . . . . . 1 . . . . . . . Mutant 1 | . . . . . . . . . . . . . . . . . . . . . . . . . . . . . . . . . . . . . . 1 Best Kill Streak 40 | 1 6 4 7 9 . 8 4 8 6 5 3 . 5 6 13 . 9 2 4 . 7 14 5 3 16 5 5 5 5 1 10 7 6 . 7 6 4 40 Combat Bots Only 36 | . 6 2 6 7 . 8 3 6 3 5 3 . 3 6 4 . 3 2 4 . 7 6 5 3 16 5 5 5 4 1 5 6 5 . 7 4 2 36 Max Kills in Single Turn 10 | 1 1 1 2 3 . 2 2 2 3 1 2 . 5 2 1 . 1 1 2 . 1 5 4 1 2 4 1 1 2 1 1 2 2 . 2 1 1 10 Gunslinging 2 | . . . 1 2 . 1 . . . . . . . . . . . . . . . . . . . . . . . . . . . . . . . . Exploded 10 | . . . . . . . . . . . 2 . . 2 . . 1 . 1 . 1 5 4 . 2 4 . . . . . . 2 . . . . 10 Melee 2 | . . . . . . . . . 1 1 1 . 1 1 1 . 1 1 2 . 1 2 1 1 1 1 1 1 2 1 1 2 2 . 2 1 1 2 Uniques/NPCs Destroyed 4 | . . . . . . . . 1 . . . . 1 . . . . . . . . . . . . . . . . . . . . . . . . 2 01-MTF (-8/Storage) Z-Imprinter (-7/Deep Caves) MAIN.C Shell (-1/Command) MAIN.C (-1/Command) Combat | -11 -10 -10 -9 -9 -9 -8 -8 -8 -7 -7 -7 -7 -7 -6 -6 -6 -6 -6 -6 -6 -5 -5 -5 -5 -5 -4 -4 -4 -4 -4 -4 -3 -3 -3 -2 -2 -1 -1 -------- Run | Scr Mat Min Mat Min Exi Min Mat Sto Fac Low Low Zio Dee Pro Fac Was Fac Low Low Dat Pro Fac Upp Upp War Pro Fac Ext Cet Arc Hub Res Arm Lab Res Tes Acc Com Damage Taken 30235 | . 807 135 288 301 . 415 194 557 831 672 408 . 588 558 594 . 924 64 305 . 567 1139 86 112 1264 426 244 313 496 132 252 630 927 . 897 214 121 14774 Core 22022 | . 637 115 210 199 . 309 141 395 478 303 226 . 474 444 479 . 760 50 245 . 454 914 66 94 1022 344 190 260 392 105 207 488 749 . 733 131 91 10317 Absorbed by Shields 6687 | . . . . . . . . . . 39 . . . . . . . . . . . . . . 162 . 30 191 150 39 81 184 282 . 304 126 54 5045 Redirected to Core 19007 | . 530 62 197 167 . 225 108 294 360 267 179 . 400 378 389 . 542 46 201 . 381 784 66 63 834 283 181 167 358 92 163 488 630 . 597 125 77 9373 Core Remaining (%) 90 | 100 . 93 . . . 78 . 100 . . . . . 97 . . . . . . 100 . . . . 93 . . . . 90 . . 100 . 93 . 55 Volleys Fired 1101 | 2 68 17 36 36 . 23 12 69 52 1 1 . 2 1 1 1 1 1 1 . 6 2 1 2 51 5 . 1 1 . 3 . 1 5 1 . 3 694 Largest 3 | 2 2 3 3 3 . 3 3 3 3 1 1 . 1 1 1 1 1 1 1 . 1 1 1 1 1 1 . 1 1 . 1 . 1 1 1 . 1 2 Hottest 170 | 40 40 60 69 69 . 69 71 73 75 46 46 . 46 46 46 46 46 46 46 . 46 46 46 46 46 46 . 46 46 . 46 . 80 80 80 . 80 170 Shots Fired 1606 | 4 136 44 108 108 . 69 34 155 156 1 1 . 2 1 1 1 3 2 1 . 6 2 1 2 51 5 . 1 1 . 3 . 1 5 1 . 3 697 Gun 1303 | 4 136 44 108 108 . 69 34 155 156 . . . . . . . . . . . . . . . . . . . . . . . . 5 . . . 484 Cannon 155 | . . . . . . . . . . . . . . . . . . . . . . . . . . . . . . . . . . . . . . 155 Launcher 148 | . . . . . . . . . . 1 1 . 2 1 1 1 3 2 1 . 6 2 1 2 51 5 . 1 1 . 3 . 1 . 1 . 3 58 Special . | . . . . . . . . . . . . . . . . . . . . . . . . . . . . . . . . . . . . . . . Kinetic 1434 | 4 136 44 108 108 . 69 34 136 156 . . . . . . . . . . . . . . . . . . . . . . . . . . . . 639 Thermal . | . . . . . . . . . . . . . . . . . . . . . . . . . . . . . . . . . . . . . . . Explosive . | . . . . . . . . . . . . . . . . . . . . . . . . . . . . . . . . . . . . . . . Electromagnetic 172 | . . . . . . . . 19 . 1 1 . 2 1 1 1 3 2 1 . 6 2 1 2 51 5 . 1 1 . 3 . 1 5 1 . 3 58 Robot Hit Streak 75 | 3 16 13 16 12 . 6 14 24 24 . . . . . . . 1 . . . 1 1 . 2 19 . . . 1 . . . . . . . 1 75 Robot Miss Streak 6 | . 2 3 3 4 . 6 3 4 4 1 . . . . 2 . . . . . 1 . 1 . 1 3 . . . . . . . . . . 3 4 Penetration Max 4 | . . . . . . . . . . . . . . . . . . . . . . . . . . . . . . . . . . . . . . 4 Secondary Targets 22 | . 2 2 1 7 . 7 . 2 1 . . . . . . . . . . . . . . . . . . . . . . . . . . . . . Max Gunslinging Chain 2 | . 1 1 1 2 . 2 . 1 1 . . . . . . . . . . . . . . . . . . . . . . . . . . . . . Shots Hit Robots 2474 | 3 105 28 74 77 . 44 29 117 136 51 24 1 30 67 56 . 103 8 30 . 31 79 2 7 42 18 28 64 19 5 33 74 74 . 92 25 10 888 Core Hits 2769 | 2 45 15 39 45 . 24 16 64 57 23 11 1 16 31 27 . 44 7 17 . 27 63 6 6 83 21 14 40 18 2 23 36 44 . 46 13 9 1834 Critical Hits 852 | . 3 . 2 . . 1 1 . 5 . . . 1 3 5 . 1 . . . 4 8 1 2 2 1 3 11 2 3 6 3 5 . 6 1 2 770 Critical Kills 301 | . . . . . . 1 . . 4 . . . 1 3 3 . 1 . . . 2 6 1 1 . 1 2 4 1 . 3 . 3 . . . . 264 Critical Parts Destroyed 462 | . 3 . 2 . . . 1 . 1 . . . . . 2 . . . . . 2 2 . 1 2 . 1 7 1 3 3 3 2 . 6 1 1 418 Melee Attacks 1695 | . . . . . . . . . 27 59 30 21 34 81 67 . 129 13 39 2 41 103 3 8 19 25 39 89 25 6 52 92 132 6 112 33 14 394 Impact 100 | . . . . . . . . . . 6 14 9 2 15 9 . 18 2 2 . 6 16 . 1 . . . . . . . . . . . . . . Slashing 833 | . . . . . . . . . 27 53 7 11 25 56 50 . 99 9 27 1 14 23 1 3 5 8 9 24 10 2 11 47 73 3 71 21 8 135 Piercing 576 | . . . . . . . . . . . 9 1 7 10 8 . 12 2 10 1 21 64 2 4 10 12 23 49 14 4 32 24 29 2 21 6 3 196 Entropic 186 | . . . . . . . . . . . . . . . . . . . . . . . . . 4 5 7 16 1 . 9 21 30 1 20 6 3 63 Sneak Attacks 117 | . . . . . . . . . . 1 . . 1 3 2 . 14 . . . 3 16 . . . . 2 14 . . 6 6 2 . 10 5 1 31 Combat Hostiles 23 | . . . . . . . . . . . . . 1 3 . . 2 . . . 3 1 . . . . . 2 . . . . 1 . 2 . . 8 Follow-up Attacks 371 | . . . . . . . . . 5 19 10 . 12 26 14 . 27 1 12 . 9 18 . 1 7 6 7 18 7 1 9 24 27 . 24 7 2 78 Damage Inflicted 157173 | 27 900 262 1060 1005 . 529 526 1906 2661 1588 1000 156 3745 3325 2719 4 5947 632 1444 . 2709 7339 168 533 5137 1675 2142 5922 1469 332 3594 6549 6579 . 8894 2705 950 71040 Guns 17199 | 27 900 262 1060 1005 . 529 526 1771 1966 . . . . . . . . . . . . . . . . . . . . . . . . . . . . 9153 Cannons 8568 | . . . . . . . . . . . . . . . . . . . . . . . . . . . . . . . . . . . . . . 8568 Explosions 32445 | . . . . . . . . 135 . 9 167 . 2171 132 91 4 60 57 84 . 616 941 90 217 4145 449 . 42 352 . 447 . 291 . 38 . 76 21831 Melee 98961 | . . . . . . . . . 695 1579 833 156 1574 3193 2628 . 5887 575 1360 . 2093 6398 78 316 992 1226 2142 5880 1117 332 3147 6549 6288 . 8856 2705 874 31488 Ramming . | . . . . . . . . . . . . . . . . . . . . . . . . . . . . . . . . . . . . . . . Kinetic 31434 | 27 900 262 1060 1005 . 529 526 1660 1966 . . . . . . . . . . . . . . . . . . . . . . . . . . . . 23499 Thermal 10897 | . . . . . . . . 135 . . 100 . 2150 70 . . . . . . . 478 . . 284 162 . . 203 . 55 . . . . . . 7260 Explosive . | . . . . . . . . . . . . . . . . . . . . . . . . . . . . . . . . . . . . . . . Electromagnetic 15881 | . . . . . . . . 111 . 9 67 . 21 62 91 4 60 57 84 . 616 463 90 217 3861 287 . 42 149 . 392 . 291 . 38 . 76 8793 Impact 2142 | . . . . . . . . . . 186 361 . 62 456 247 . 454 . 27 . 42 307 . . . . . . . . . . . . . . . . Slashing 48346 | . . . . . . . . . 695 1393 158 156 1318 2465 2262 . 5011 575 1115 . 601 681 . 42 164 202 328 646 342 52 366 3976 4210 . 6644 1953 706 12285 Piercing 37587 | . . . . . . . . . . . 314 . 194 272 119 . 422 . 218 . 1450 5410 78 274 591 848 1638 4414 775 280 2275 1100 759 . 614 499 65 14978 Entropic 10886 | . . . . . . . . . . . . . . . . . . . . . . . . . 237 176 176 820 . . 506 1473 1319 . 1598 253 103 4225 Highest Corruption 12 | . . . . . . . . . 2 2 2 2 . . 1 8 10 9 2 2 2 . . . 4 4 . . . . 2 . 1 1 . . . 12 Average Corruption 3 | . . . . . . . . . 2 2 2 2 . . 1 6 7 4 2 2 2 . . . 3 4 . . . . 2 . 1 1 . . . 3 Corruption Purged 42 | . . . . . . . . . . . . . . . . . 7 7 . . . . . . . . . . . . . . . . . . . 28 Effects 239 | . . . . . . . . . 9 9 5 2 . . . 2 37 7 5 1 5 . . . 4 6 . . . . 1 . 1 . . . . 145 Message Errors 53 | . . . . . . . . . 2 4 2 2 . . . . 8 4 1 . 1 . . . 2 1 . . . . . . 1 . . . . 25 Matter Fused 47 | . . . . . . . . . . . . . . . . 2 7 . . . . . . . . 4 . . . . . . . . . . . 34 Heat Flow Errors 23 | . . . . . . . . . . 1 2 . . . . . 2 1 . . . . . . . 1 . . . . 1 . . . . . . 15 Energy Discharges 21 | . . . . . . . . . 3 1 . . . . . . 1 . 1 . 2 . . . 1 . . . . . . . . . . . . 12 Parts Rejected 3 | . . . . . . . . . . . . . . . . . 2 . . . . . . . . . . . . . . . . . . . . 1 Data Loss (minor) 31 | . . . . . . . . . 1 1 1 . . . . . 2 . 1 1 2 . . . 1 . . . . . . . . . . . . 21 Data Loss (major) 4 | . . . . . . . . . . . . . . . . . 1 1 . . . . . . . . . . . . . . . . . . . 2 Misfires 7 | . . . . . . . . . . . . . . . . . 2 1 . . . . . . . . . . . . . . . . . . . 4 Misdirections 5 | . . . . . . . . . . . . . . . . . 3 . . . . . . . . . . . . . . . . . . . . 2 Targeting Errors 43 | . . . . . . . . . 3 2 . . . . . . 9 . 2 . . . . . . . . . . . . . . . . . . 27 Weapon Failures 2 | . . . . . . . . . . . . . . . . . . . . . . . . . . . . . . . . . . . . . . 2 Overload Shots . | . . . . . . . . . . . . . . . . . . . . . . . . . . . . . . . . . . . . . . . Overflow Damage 12126 | . . . . . . . . . . 26 32 . 688 161 201 . 688 132 29 . 200 962 . . 107 154 175 590 . . 220 803 871 . 1166 544 83 4294 Projectiles 86 | . . . . . . . . . . . . . . . . . . . . . . . . . . . . . . . . . . . . . . 86 Explosions 1305 | . . . . . . . . . . . 11 . 496 . . . . . 5 . 5 185 . . 42 9 . . . . 8 . . . . . . 544 Melee 10735 | . . . . . . . . . . 26 21 . 192 161 201 . 688 132 24 . 195 777 . . 65 145 175 590 . . 212 803 871 . 1166 544 83 3664 Knockbacks 32 | . . . . . . . . . . 1 1 . 2 2 . . 2 . . . 1 2 . . . . . . . . . . . . . . . 21 Impact 11 | . . . . . . . . . . 1 1 . 2 2 . . 2 . . . 1 2 . . . . . . . . . . . . . . . . Kinetic 20 | . . . . . . . . . . . . . . . . . . . . . . . . . . . . . . . . . . . . . . 20 Secondary 1 | . . . . . . . . . . . . . . . . . . . . . . . . . . . . . . . . . . . . . . 1 Self-Inflicted Damage 393 | . . . . . . . . 34 . . . . . . . . . 16 . . . . . . . 29 . . . . 192 . 4 . . . . 118 Shots 21 | . . . . . . . . 1 . . . . . . . . . 1 . . . . . . . 1 . . . . 2 . 1 . . . . 15 Rammed . | . . . . . . . . . . . . . . . . . . . . . . . . . . . . . . . . . . . . . . . Targets Rammed . | . . . . . . . . . . . . . . . . . . . . . . . . . . . . . . . . . . . . . . . Kicked . | . . . . . . . . . . . . . . . . . . . . . . . . . . . . . . . . . . . . . . . Crushed . | . . . . . . . . . . . . . . . . . . . . . . . . . . . . . . . . . . . . . . . Highest Temperature 386 | . . . . . . 3 . 17 43 239 266 . . . . . 172 134 . . 2 386 . 8 . 244 . . . . 133 . . . . . . 206 Average Temperature 56 | . . . . . . 3 . 10 7 116 120 . . . . . 92 73 . . 2 179 . 5 . 141 . . . . 133 . . . . . . 91 Received Heat Transfer 4210 | . 438 12 102 84 . 117 54 171 225 219 66 . 198 96 159 . 345 18 90 . 177 258 12 57 167 . 40 65 105 34 . 93 99 . 32 60 6 611 Effects 5 | . . . . . . . . . . 1 1 . . . . . . . . . . 1 . . . 2 . . . . . . . . . . . . Energy Bleed 2 | . . . . . . . . . . 1 1 . . . . . . . . . . . . . . . . . . . . . . . . . . . Interference 3 | . . . . . . . . . . . . . . . . . . . . . . 1 . . . 2 . . . . . . . . . . . . Siege Activations . | . . . . . . . . . . . . . . . . . . . . . . . . . . . . . . . . . . . . . . . Robots Corrupted 42 | . . . . . . . . 1 . . . . . . . . . . . . 2 1 . . 16 . . . . . 1 . . . . . . 21 Combat Hostiles 37 | . . . . . . . . . . . . . . . . . . . . . 2 . . . 16 . . . . . . . . . . . . 19 Parts Fried 106 | . . . . . . . . . . . 1 . . 4 2 . 2 . . . 6 3 . . 21 3 . 2 . . 3 . . . 1 . . 58 Impact Corruptions 12 | . . . . . . . . . . . 2 . . 5 1 . 2 . . . . 2 . . . . . . . . . . . . . . . . Robots Melted 1 | . . . . . . . . . . . . . . . . . . . . . . . . . . . . . . . . . . . . . . 1 Combat Hostiles 1 | . . . . . . . . . . . . . . . . . . . . . . . . . . . . . . . . . . . . . . 1 Parts Melted 19 | . . . . . . . . . . . . . . . . . . . . . . . . . 8 . . 1 . . . . . . 1 . . 9 Heat Transferred 6701 | . . . . . . . . 50 . . 100 . . 50 . . . . . . . 300 . . 251 150 . . 200 . 100 . . . . . . 5500 Parts Sabotaged . | . . . . . . . . . . . . . . . . . . . . . . . . . . . . . . . . . . . . . . . Parts Stolen . | . . . . . . . . . . . . . . . . . . . . . . . . . . . . . . . . . . . . . . . Parts Stripped . | . . . . . . . . . . . . . . . . . . . . . . . . . . . . . . . . . . . . . . . Power Chain Reactions 35 | . . . . . . . . 1 . . 1 . . 1 . . . . . . . . . . 6 3 . . 1 . 1 . . . . . . 21 Missiles Intercepted . | . . . . . . . . . . . . . . . . . . . . . . . . . . . . . . . . . . . . . . . Alert | -11 -10 -10 -9 -9 -9 -8 -8 -8 -7 -7 -7 -7 -7 -6 -6 -6 -6 -6 -6 -6 -5 -5 -5 -5 -5 -4 -4 -4 -4 -4 -4 -3 -3 -3 -2 -2 -1 -1 ------- Run | Scr Mat Min Mat Min Exi Min Mat Sto Fac Low Low Zio Dee Pro Fac Was Fac Low Low Dat Pro Fac Upp Upp War Pro Fac Ext Cet Arc Hub Res Arm Lab Res Tes Acc Com Peak Influence 11653 | 5 440 284 501 715 . 375 265 674 693 . . . . . 354 123 623 . . . . 1940 . . . . 624 723 688 425 1166 1093 1332 . 608 1184 1090 11653 Initial 710 | . 3 120 108 195 . . 68 111 240 . . . . . 207 123 82 . . . . 352 . . . . 245 246 320 275 148 612 571 . . 342 710 313 Average 2759 | . 283 215 277 537 . 225 137 461 525 . . . . . 203 119 307 . . . . 1044 . . . . 434 444 549 386 516 928 1006 . 324 665 950 6170 Maximum Alert Level 5 | . 2 1 2 3 . 1 1 2 2 . . . . . 1 . 2 . . . . 5 . . . . 2 3 2 2 4 3 4 . 2 4 3 5 Low Security (%) 7 | 100 16 27 28 . . 41 91 5 . . . . . . 42 100 22 . . . . . . . . . . . . . 9 . . . 22 . . . Level 1 18 | . 69 72 61 19 . 58 8 14 17 . . . . . 57 . 48 . . . . 22 . . . . 38 37 10 34 22 . . . 52 26 . . Level 2 22 | . 14 . 10 62 . . . 79 82 . . . . . . . 28 . . . . . . . . . 61 61 89 65 46 21 12 . 25 41 2 1 Level 3 9 | . . . . 17 . . . . . . . . . . . . . . . . . 24 . . . . . . . . 17 78 49 . . 12 97 3 Level 4 5 | . . . . . . . . . . . . . . . . . . . . . . 31 . . . . . . . . 3 . 38 . . 19 . 3 Level 5 1 | . . . . . . . . . . . . . . . . . . . . . . 12 . . . . . . . . . . . . . . . 1 High Security 35 | . . . . . . . . . . . . . . . . . . . . . . 7 . . . . . . . . . . . . . . . 88 Max Security . | . . . . . . . . . . . . . . . . . . . . . . . . . . . . . . . . . . . . . . . Squads Dispatched 119 | . 6 . 4 . . . 2 4 7 . . . . 1 3 . 12 . 1 . 1 7 . . . . 1 1 . . 4 6 5 . 1 7 4 42 Investigation 28 | . 4 . 1 . . . . 2 3 . . . . 1 . . 6 . 1 . 1 1 . . . . . . . . 1 3 . . . . 1 3 Extermination 9 | . . . . . . . . . 1 . . . . . 1 . 1 . . . . . . . . . . . . . 1 . 2 . . 1 . 2 Reinforcement 32 | . 2 . 3 . . . 2 2 1 . . . . . 2 . 5 . . . . 1 . . . . . . . . 1 3 1 . 1 5 2 1 Assault 47 | . . . . . . . . . 1 . . . . . . . . . . . . 5 . . . . 1 1 . . . . 2 . . 1 . 36 Garrison 3 | . . . . . . . . . 1 . . . . . . . . . . . . . . . . . . . . . 1 . . . . . 1 . Intercept . | . . . . . . . . . . . . . . . . . . . . . . . . . . . . . . . . . . . . . . . Construction Impeded 3 | . . . . . . . . . 1 . . . . . 1 . . . . . . . . . . . . . . . 1 . . . . . . . Haulers Reinforced 4 | . . . . . . . . . . . . . . . 1 . 2 . . . . . . . . . . . . . . . . . 1 . . . Stealth | -11 -10 -10 -9 -9 -9 -8 -8 -8 -7 -7 -7 -7 -7 -6 -6 -6 -6 -6 -6 -6 -5 -5 -5 -5 -5 -4 -4 -4 -4 -4 -4 -3 -3 -3 -2 -2 -1 -1 --------- Run | Scr Mat Min Mat Min Exi Min Mat Sto Fac Low Low Zio Dee Pro Fac Was Fac Low Low Dat Pro Fac Upp Upp War Pro Fac Ext Cet Arc Hub Res Arm Lab Res Tes Acc Com Distress Signals 28 | . 4 . 2 . . . 1 3 . . . . . . . . 2 . . . . . . . . . . 1 2 . 2 4 2 . 4 . 1 . Communications Jammed 78 | . . . . . . . . . . . . . . . . . 27 . . . . 19 . . 5 . . . . . . . 25 . 2 . . . Distress Signals 78 | . . . . . . . . . . . . . . . . . 27 . . . . 19 . . 5 . . . . . . . 25 . 2 . . . Times Spotted 1520 | . 25 25 26 30 . 22 8 35 29 17 12 . 8 30 18 6 43 5 15 . 21 42 2 7 65 19 19 34 10 4 21 35 74 . 51 24 20 718 Peak Tracking Total 50 | . 5 16 5 4 . 9 5 5 5 7 4 . 3 6 4 6 9 3 3 . 4 6 1 3 12 5 5 6 5 3 6 6 10 . 14 13 10 50 Tactical Retreats 131 | . 1 1 . 3 . 3 1 2 1 1 1 . . 6 . . 9 1 . . . 1 . 1 6 . 3 2 . . 1 3 10 . 3 3 4 64 Traps | -11 -10 -10 -9 -9 -9 -8 -8 -8 -7 -7 -7 -7 -7 -6 -6 -6 -6 -6 -6 -6 -5 -5 -5 -5 -5 -4 -4 -4 -4 -4 -4 -3 -3 -3 -2 -2 -1 -1 ------- Run | Scr Mat Min Mat Min Exi Min Mat Sto Fac Low Low Zio Dee Pro Fac Was Fac Low Low Dat Pro Fac Upp Upp War Pro Fac Ext Cet Arc Hub Res Arm Lab Res Tes Acc Com Traps Triggered 86 | . 3 . . . . . . 1 2 . . . . . 1 . 2 . . . . 3 . . 7 . 1 . . . 3 1 4 . 1 . 1 56 Indirectly 67 | . . . . . . . . . . . . . . . . . . . . . . . . . 7 . . . . . 1 . 4 . . . 1 54 Trap Hack Attempts . | . . . . . . . . . . . . . . . . . . . . . . . . . . . . . . . . . . . . . . . Triggered . | . . . . . . . . . . . . . . . . . . . . . . . . . . . . . . . . . . . . . . . Disarmed 1 | . . . . . . . . . . . . . . . . . . . . . . . . . . . . . . . . . . . . . . 1 Reprogrammed . | . . . . . . . . . . . . . . . . . . . . . . . . . . . . . . . . . . . . . . . Reused . | . . . . . . . . . . . . . . . . . . . . . . . . . . . . . . . . . . . . . . . Traps Extracted . | . . . . . . . . . . . . . . . . . . . . . . . . . . . . . . . . . . . . . . . Installed . | . . . . . . . . . . . . . . . . . . . . . . . . . . . . . . . . . . . . . . . Triggered 7 | . . . . . . . . . . . . . . . . . . . 2 . . . . 1 2 . . . . . . . 2 . . . . . Machines | -11 -10 -10 -9 -9 -9 -8 -8 -8 -7 -7 -7 -7 -7 -6 -6 -6 -6 -6 -6 -6 -5 -5 -5 -5 -5 -4 -4 -4 -4 -4 -4 -3 -3 -3 -2 -2 -1 -1 ---------- Run | Scr Mat Min Mat Min Exi Min Mat Sto Fac Low Low Zio Dee Pro Fac Was Fac Low Low Dat Pro Fac Upp Upp War Pro Fac Ext Cet Arc Hub Res Arm Lab Res Tes Acc Com Machines Disabled 53 | . . . . . . . . 1 1 . . 2 3 1 . . 3 . . . 1 8 . . 2 . . 1 1 1 16 . 6 1 . 2 . 3 Max in Single Turn 9 | . . . . . . . . 1 1 . . 1 2 1 . . 2 . . . 1 4 . . 2 . . . 1 . 9 . 1 1 . 1 . 1 Garrison Access 9 | . . . . . . . . 1 . . . . . . . . 1 . . . . 1 . . . . . . . . 1 1 . . 2 . 2 . Network Hub 2 | . . . . . . . . . . . . . . . . . . . . . . . . . . . . . . . 2 . . . . . . . Machines Sabotaged . | . . . . . . . . . . . . . . . . . . . . . . . . . . . . . . . . . . . . . . . Garrisons Compromised . | . . . . . . . . . . . . . . . . . . . . . . . . . . . . . . . . . . . . . . . Overloaded Fab Kills . | . . . . . . . . . . . . . . . . . . . . . . . . . . . . . . . . . . . . . . . Fab Network Shutdowns 2 | . . . . . . . . . . . . . . . . . . . . . . 1 . . . . . . . . . . . . . 1 . . Hacking | -11 -10 -10 -9 -9 -9 -8 -8 -8 -7 -7 -7 -7 -7 -6 -6 -6 -6 -6 -6 -6 -5 -5 -5 -5 -5 -4 -4 -4 -4 -4 -4 -3 -3 -3 -2 -2 -1 -1 --------- Run | Scr Mat Min Mat Min Exi Min Mat Sto Fac Low Low Zio Dee Pro Fac Was Fac Low Low Dat Pro Fac Upp Upp War Pro Fac Ext Cet Arc Hub Res Arm Lab Res Tes Acc Com Machines Accessed 135 | . 4 . 2 . 1 . 1 14 8 . . 1 . 1 7 . 11 1 1 4 1 8 . . 1 . 3 9 4 1 7 2 11 2 4 6 7 13 Terminals 96 | . 2 . 1 . . . 1 11 6 . . . . 1 6 . 8 . 1 . 1 5 . . . . 3 9 4 . 6 . 10 . 1 3 4 13 Fabricators 11 | . . . . . . . . . 1 . . . . . . . 2 . . . . 3 . . . . . . . . . 1 1 . . 2 1 . Repair Stations 1 | . . . . . . . . . 1 . . . . . . . . . . . . . . . . . . . . . . . . . . . . . Recycling Units 5 | . 2 . 1 . . . . 2 . . . . . . . . . . . . . . . . . . . . . . . . . . . . . . Scanalyzers 1 | . . . . . . . . . . . . . . . . . . . . . . . . . . . . . . . . . . . . 1 . . Garrison Access 10 | . . . . . . . . 1 . . . . . . 1 . 1 . . . . . . . . . . . . . 1 1 . . 3 . 2 . Total Hacks 499 | . 7 . 6 . 1 . 3 30 27 . . 2 . 5 25 . 31 1 4 26 7 26 . . 1 . 11 20 6 25 16 6 41 20 12 18 36 86 Successful 272 | . 4 . 3 . 1 . 1 19 13 . . 2 . 5 11 . 11 1 1 26 5 15 . . 1 . 5 13 6 25 6 3 19 20 6 6 11 33 Failed 227 | . 3 . 3 . . . 2 11 14 . . . . . 14 . 20 . 3 . 2 11 . . . . 6 7 . . 10 3 22 . 6 12 25 53 Catastrophic 48 | . . . 1 . . . . 2 2 . . . . . 2 . 6 . . . . 1 . . . . 1 1 . . 1 . 6 . 2 4 9 10 Database Lockouts . | . . . . . . . . . . . . . . . . . . . . . . . . . . . . . . . . . . . . . . . Manual 184 | . 2 . 4 . . . 2 21 . . . . . . 12 . 3 . 3 . 2 5 . . 1 . 5 14 3 . 5 . 23 . 5 7 28 39 Terminals 357 | . 5 . 5 . . . 3 26 22 . . . . 5 22 . 25 . 4 . 7 15 . . . . 11 20 6 . 13 . 40 . 6 10 26 86 Fabricators 32 | . . . . . . . . . 2 . . . . . . . 4 . . . . 11 . . . . . . . . . 5 1 . . 6 3 . Repair Stations 3 | . . . . . . . . . 3 . . . . . . . . . . . . . . . . . . . . . . . . . . . . . Recycling Units 5 | . 2 . 1 . . . . 2 . . . . . . . . . . . . . . . . . . . . . . . . . . . . . . Scanalyzers 2 | . . . . . . . . . . . . . . . . . . . . . . . . . . . . . . . . . . . . 2 . . Garrison Access 24 | . . . . . . . . 2 . . . . . . 3 . 2 . . . . . . . . . . . . . 3 1 . . 6 . 7 . Terminal Hacks 195 | . 2 . 2 . 1 . 1 10 10 . . 2 . 5 8 . 8 1 1 26 5 9 . . 1 . 4 4 5 25 3 . 11 20 4 2 6 19 Record 72 | . . . . . 1 . . . . . . . . 5 . . . . 1 11 5 . . . . . . . 4 25 . . . 20 . . . . Part Schematic 16 | . . . . . . . . 2 2 . . 2 . . . . . . . 6 . 1 . . . . . . . . 1 . 1 . . 1 . . Robot Schematic 6 | . . . . . . . . . . . . . . . . . . . . 6 . . . . . . . . . . . . . . . . . . Prototype ID Bank 18 | . . . 1 . . . . . 2 . . . . . . . 1 . . 3 . 2 . . . . . . . . 1 . 3 . . . . 5 Open Door 5 | . . . . . . . . 2 . . . . . . . . . 1 . . . . . . 1 . . . 1 . . . . . . . . . Level Access Points 2 | . . . . . . . . 1 . . . . . . 1 . . . . . . . . . . . . . . . . . . . . . . . Branch Access Points 8 | . 1 . . . . . 1 . 1 . . . . . 1 . . . . . . 1 . . . . 1 . . . . . . . 1 . 1 . Emergency Access Points 6 | . . . . . . . . . 1 . . . . . 1 . 2 . . . . . . . . . . . . . . . . . . . . 2 Machine Index 1 | . . . . . . . . . . . . . . . . . . . . . . . . . . . . . . . . . . . . . . 1 Terminal Index 1 | . . . . . . . . . . . . . . . . . . . . . . . . . . . . . . . . . . . . . . 1 Alert Level 3 | . . . . . . . . . . . . . . . . . . . . . . . . . . . . . . . . . 1 . . . 1 1 Unreport Threat 21 | . . . . . . . . 3 . . . . . . 2 . 3 . . . . 1 . . . . 1 2 . . 1 . 2 . 2 . 4 . Locate Traps 12 | . . . . . . . . . 2 . . . . . 1 . . . . . . . . . . . 1 1 . . . . 2 . . . . 5 Disarm Traps 1 | . . . . . . . . . . . . . . . . . . . . . . . . . . . . . . . . . . . . . . 1 Security Status 1 | . . . . . . . . . . . . . . . . . . . . . . . . . . . . . . . . . 1 . . . . . Patrol Status 1 | . . . . . . . . . . . . . . . . . . . . . . . . . . . . . . . . . . . . . . 1 Hauler Manifests 10 | . . . . . . . . 1 1 . . . . . 2 . 1 . . . . 2 . . . . . 1 . . . . . . 1 1 . . Registered Components 4 | . 1 . . . . . . . 1 . . . . . . . 1 . . . . 1 . . . . . . . . . . . . . . . . Registered Prototypes 1 | . . . . . . . . . . . . . . . . . . . . . . 1 . . . . . . . . . . . . . . . . Zone Layout 4 | . . . 1 . . . . 1 . . . . . . . . . . . . . . . . . . 1 . . . . . 1 . . . . . Disengage Seal 2 | . . . . . . . . . . . . . . . . . . . . . . . . . . . . . . . . . . . . . . 2 Fabricator Hacks 12 | . . . . . . . . . 2 . . . . . . . . . . . . 5 . . . . . . . . . 2 . . . 2 1 . Load Schematic 7 | . . . . . . . . . 1 . . . . . . . . . . . . 3 . . . . . . . . . 1 . . . 1 1 . Build 5 | . . . . . . . . . 1 . . . . . . . . . . . . 2 . . . . . . . . . 1 . . . 1 . . Repair Station Hacks 1 | . . . . . . . . . 1 . . . . . . . . . . . . . . . . . . . . . . . . . . . . . Scan Component 1 | . . . . . . . . . 1 . . . . . . . . . . . . . . . . . . . . . . . . . . . . . Recycling Unit Hacks . | . . . . . . . . . . . . . . . . . . . . . . . . . . . . . . . . . . . . . . . Scanalyzer . | . . . . . . . . . . . . . . . . . . . . . . . . . . . . . . . . . . . . . . . Garrison Access Hacks 7 | . . . . . . . . 1 . . . . . . . . 1 . . . . . . . . . . . . . 1 1 . . 2 . 1 . Seal Access 7 | . . . . . . . . 1 . . . . . . . . 1 . . . . . . . . . . . . . 1 1 . . 2 . 1 . Unauthorized Hacks 57 | . 2 . 1 . . . . 8 . . . . . . 3 . 2 . . . . 1 . . . . 1 9 1 . 2 . 8 . . 2 3 14 Terminals 48 | . . . . . . . . 6 . . . . . . 3 . 1 . . . . . . . . . 1 9 1 . 2 . 8 . . 1 2 14 Track 17 | . . . . . . . . 1 . . . . . . 1 . . . . . . . . . . . . 3 . . 1 . 3 . . 1 . 7 Botnet 29 | . . . . . . . . 5 . . . . . . 2 . 1 . . . . . . . . . 1 5 1 . 1 . 5 . . . 2 6 Disrupt 1 | . . . . . . . . . . . . . . . . . . . . . . . . . . . . 1 . . . . . . . . . . Operators 1 | . . . . . . . . . . . . . . . . . . . . . . . . . . . . . . . . . . . . . . 1 Fabricators 2 | . . . . . . . . . . . . . . . . . 1 . . . . 1 . . . . . . . . . . . . . . . . Haulers 1 | . . . . . . . . . . . . . . . . . . . . . . 1 . . . . . . . . . . . . . . . . Download 1 | . . . . . . . . . . . . . . . . . 1 . . . . . . . . . . . . . . . . . . . . . Repair Stations . | . . . . . . . . . . . . . . . . . . . . . . . . . . . . . . . . . . . . . . . Recycling Units 5 | . 2 . 1 . . . . 2 . . . . . . . . . . . . . . . . . . . . . . . . . . . . . . Tunnel 5 | . 2 . 1 . . . . 2 . . . . . . . . . . . . . . . . . . . . . . . . . . . . . . Scanalyzers 1 | . . . . . . . . . . . . . . . . . . . . . . . . . . . . . . . . . . . . 1 . . Researchers 1 | . . . . . . . . . . . . . . . . . . . . . . . . . . . . . . . . . . . . 1 . . Garrison Access 1 | . . . . . . . . . . . . . . . . . . . . . . . . . . . . . . . . . . . . . 1 . Jam 1 | . . . . . . . . . . . . . . . . . . . . . . . . . . . . . . . . . . . . . 1 . Data Cores Recovered 5 | . . . . . . . . . . . . . . . 1 . . . . . . 1 . . . . . 2 . . . . . . . . . 1 Used 4 | . . . . . . . . . . . . . . . 1 . . . . . . . . . . . . 2 . . . . . . . . . 1 Hacking Detections 101 | . 2 . 1 . . . 1 11 7 . . . . 1 6 . 9 . 1 . 1 8 . . . . 3 5 4 . 6 1 9 . 2 5 5 13 Full Trace Events 15 | . 1 . . . . . . . 3 . . . . 1 . . 5 . 1 . 1 1 . . . . . . . . 1 . . . . . . 1 Feedback Events 2 | . . . . . . . . . . . . . . . . . 2 . . . . . . . . . . . . . . . . . . . . . Corruption 1 | . . . . . . . . . . . . . . . . . 1 . . . . . . . . . . . . . . . . . . . . . Hackware Fried 1 | . . . . . . . . . . . . . . . . . 1 . . . . . . . . . . . . . . . . . . . . . Feedback Blocked . | . . . . . . . . . . . . . . . . . . . . . . . . . . . . . . . . . . . . . . . Robot Schematics Acquired 6 | . . . . . . . . . . . . . . . . . . . . 6 . . . . . . . . . . . . . . . . . . Robots Built 2 | . . . . . . . . . . . . . . . . . . . . . . . . . . . . . . . . . . . . 2 . . Matter 318 | . . . . . . . . . . . . . . . . . . . . . . . . . . . . . . . . . . . . 318 . . Time 84 | . . . . . . . . . . . . . . . . . . . . . . . . . . . . . . . . . . . . 84 . . Total Robot Build Rating 12 | . . . . . . . . . . . . . . . . . . . . . . . . . . . . . . . . . . . . 12 . . Part Schematics Acquired 17 | . . . . . . . . 2 2 . . 2 . . . . 1 . . 6 . 1 . . . . . . . . 1 . 1 . . 1 . . Parts Built 5 | . . . . . . . . . 1 . . . . . . . . . . . . 3 . . . . . . . . . 1 . . . . . . Matter 1064 | . . . . . . . . . 212 . . . . . . . . . . . . 596 . . . . . . . . . 256 . . . . . . Time 427 | . . . . . . . . . 106 . . . . . . . . . . . . 257 . . . . . . . . . 64 . . . . . . Total Part Build Rating 34 | . . . . . . . . . 6 . . . . . . . . . . . . 20 . . . . . . . . . 8 . . . . . . Parts Repaired . | . . . . . . . . . . . . . . . . . . . . . . . . . . . . . . . . . . . . . . . Time . | . . . . . . . . . . . . . . . . . . . . . . . . . . . . . . . . . . . . . . . Parts Recycled . | . . . . . . . . . . . . . . . . . . . . . . . . . . . . . . . . . . . . . . . Recycled Matter . | . . . . . . . . . . . . . . . . . . . . . . . . . . . . . . . . . . . . . . . Retrieved Matter . | . . . . . . . . . . . . . . . . . . . . . . . . . . . . . . . . . . . . . . . Retrieved Components . | . . . . . . . . . . . . . . . . . . . . . . . . . . . . . . . . . . . . . . . Parts Scanalyzed . | . . . . . . . . . . . . . . . . . . . . . . . . . . . . . . . . . . . . . . . Part Schematics Acquired . | . . . . . . . . . . . . . . . . . . . . . . . . . . . . . . . . . . . . . . . Parts Damaged . | . . . . . . . . . . . . . . . . . . . . . . . . . . . . . . . . . . . . . . . Bothacking | -11 -10 -10 -9 -9 -9 -8 -8 -8 -7 -7 -7 -7 -7 -6 -6 -6 -6 -6 -6 -6 -5 -5 -5 -5 -5 -4 -4 -4 -4 -4 -4 -3 -3 -3 -2 -2 -1 -1 ------------ Run | Scr Mat Min Mat Min Exi Min Mat Sto Fac Low Low Zio Dee Pro Fac Was Fac Low Low Dat Pro Fac Upp Upp War Pro Fac Ext Cet Arc Hub Res Arm Lab Res Tes Acc Com Used RIF Installer . | . . . . . . . . . . . . . . . . . . . . . . . . . . . . . . . . . . . . . . . Robots Hacked . | . . . . . . . . . . . . . . . . . . . . . . . . . . . . . . . . . . . . . . . Non-combat . | . . . . . . . . . . . . . . . . . . . . . . . . . . . . . . . . . . . . . . . Combat . | . . . . . . . . . . . . . . . . . . . . . . . . . . . . . . . . . . . . . . . Robot Hacks Applied . | . . . . . . . . . . . . . . . . . . . . . . . . . . . . . . . . . . . . . . . Relay Couplers Released 4 | . . . . . . . . . . . . . . . . . . . . . . 1 . . . . . . . . 1 . . . 2 . . . Machine Destruction 2 | . . . . . . . . . . . . . . . . . . . . . . 1 . . . . . . . . 1 . . . . . . . Programmers 2 | . . . . . . . . . . . . . . . . . . . . . . . . . . . . . . . . . . . 2 . . . Robots Rewired 17 | . . . . . . . . . . 2 . . . . . . . . . . . . . . . . . 13 . . . . 2 . . . . . Allies Hacked 1 | . . . . . . . . . . . . . . . . . . . . . . . . . . . . 1 . . . . . . . . . . Hacks Repelled . | . . . . . . . . . . . . . . . . . . . . . . . . . . . . . . . . . . . . . . . Allies | -11 -10 -10 -9 -9 -9 -8 -8 -8 -7 -7 -7 -7 -7 -6 -6 -6 -6 -6 -6 -6 -5 -5 -5 -5 -5 -4 -4 -4 -4 -4 -4 -3 -3 -3 -2 -2 -1 -1 -------- Run | Scr Mat Min Mat Min Exi Min Mat Sto Fac Low Low Zio Dee Pro Fac Was Fac Low Low Dat Pro Fac Upp Upp War Pro Fac Ext Cet Arc Hub Res Arm Lab Res Tes Acc Com Total Allies 38 | . . 1 . . . . . 2 . 2 . . . . . 1 . . . . 1 . . . . . . 27 . . . . 2 . . 2 . . Largest Group 15 | . . 1 . . . . . 2 . 2 2 2 2 . . 1 . . . . 1 . . . . . . 15 14 13 11 . 1 . . 2 . . Highest-Rated Group 627 | . . 31 . . . . . 105 . 52 52 52 52 . . 31 . . . . 94 . . . . . . 627 603 552 463 . 56 . . 108 . . Highest-Rated Ally 156 | . . 31 . . . . . 99 . 32 32 32 32 . . 31 . . . . 94 . . . . . . 156 49 49 49 . 56 . . 54 . . Total Orders 5 | . . . . . . . . 3 . . . . . . . . . . . . . . . . . . . . . . 2 . . . . . . . STAY 2 | . . . . . . . . . . . . . . . . . . . . . . . . . . . . . . . 2 . . . . . . . EXPLORE 2 | . . . . . . . . 2 . . . . . . . . . . . . . . . . . . . . . . . . . . . . . . RETURN 1 | . . . . . . . . 1 . . . . . . . . . . . . . . . . . . . . . . . . . . . . . . Ally Attacks 316 | . . 14 . . . . . 47 . . . . 2 . . 10 . . . . 8 . . . . . . 104 24 38 57 . 8 . . 4 . . Total Damage 8538 | . . 84 . . . . . 1728 . . . . 68 . . 187 . . . . 232 . . . . . . 2964 598 969 1206 . 384 . . 118 . . Kills 51 | . . 1 . . . . . 19 . . . . . . . . . . . . 3 . . . . . . 15 . 3 8 . 2 . . . . . Allies Corrupted 3 | . . . . . . . . 1 . . . . . . . . . . . . . . . . . . . 1 . . 1 . . . . . . . Allies Melted . | . . . . . . . . . . . . . . . . . . . . . . . . . . . . . . . . . . . . . . . Intel | -11 -10 -10 -9 -9 -9 -8 -8 -8 -7 -7 -7 -7 -7 -6 -6 -6 -6 -6 -6 -6 -5 -5 -5 -5 -5 -4 -4 -4 -4 -4 -4 -3 -3 -3 -2 -2 -1 -1 ------- Run | Scr Mat Min Mat Min Exi Min Mat Sto Fac Low Low Zio Dee Pro Fac Was Fac Low Low Dat Pro Fac Upp Upp War Pro Fac Ext Cet Arc Hub Res Arm Lab Res Tes Acc Com Robot Analysis Total . | . . . . . . . . . . . . . . . . . . . . . . . . . . . . . . . . . . . . . . . Derelict Logs Recovered 17 | . . . . 2 . . . . . 2 3 2 . 2 . . . . 2 . 2 . . 1 . 1 . . . . . . . . . . . . Drone Launches 2 | . . . . . . . . 2 . . . . . . . . . . . . . . . . . . . . . . . . . . . . . . Drone Recoveries 2 | . . . . . . . . 2 . . . . . . . . . . . . . . . . . . . . . . . . . . . . . . Exploration | -11 -10 -10 -9 -9 -9 -8 -8 -8 -7 -7 -7 -7 -7 -6 -6 -6 -6 -6 -6 -6 -5 -5 -5 -5 -5 -4 -4 -4 -4 -4 -4 -3 -3 -3 -2 -2 -1 -1 ------------- Run | Scr Mat Min Mat Min Exi Min Mat Sto Fac Low Low Zio Dee Pro Fac Was Fac Low Low Dat Pro Fac Upp Upp War Pro Fac Ext Cet Arc Hub Res Arm Lab Res Tes Acc Com Turns Passed 26201 | 47 543 344 547 587 133 433 179 1186 1151 693 404 493 321 606 398 77 871 592 403 38 368 756 229 246 614 385 303 834 206 86 423 629 1104 97 1198 299 170 8208 Spaces Moved 32003 | 42 347 301 439 586 202 513 151 1151 1446 923 621 945 454 838 571 125 1154 480 660 80 547 895 406 428 723 673 448 862 199 110 565 722 1581 187 2522 682 478 7946 Core 7 | 6 1 . . . . . . . . . . . . . . . . . . . . . . . . . . . . . . . . . . . . . Treads . | . . . . . . . . . . . . . . . . . . . . . . . . . . . . . . . . . . . . . . . Legs . | . . . . . . . . . . . . . . . . . . . . . . . . . . . . . . . . . . . . . . . Wheels 683 | 36 346 301 . . . . . . . . . . . . . . . . . . . . . . . . . . . . . . . . . . . . Hover 24008 | . . . 439 586 202 513 151 1151 1446 923 621 945 454 838 571 125 1154 480 660 80 547 895 406 428 723 673 448 862 199 110 565 722 1105 . . . . 4986 Flight 7305 | . . . . . . . . . . . . . . . . . . . . . . . . . . . . . . . . . 476 187 2522 682 478 2960 Fastest Speed 12 | 50 50 80 66 66 66 66 66 45 45 45 45 45 45 45 45 45 45 45 45 45 45 38 53 53 46 46 46 46 46 46 46 46 12 28 28 26 26 26 Average Speed 42 | 75 79 80 78 66 66 66 66 49 45 45 45 45 45 45 45 45 45 45 45 45 45 47 53 53 50 46 46 46 46 46 46 46 40 28 28 26 26 35 Slowest Speed 190 | 80 80 80 80 66 66 66 66 66 101 45 45 45 45 45 45 45 52 45 45 45 45 112 53 53 53 46 46 46 46 46 46 46 190 28 29 29 26 48 Overloaded Moves . | . . . . . . . . . . . . . . . . . . . . . . . . . . . . . . . . . . . . . . . Propulsion Burnouts . | . . . . . . . . . . . . . . . . . . . . . . . . . . . . . . . . . . . . . . . Robots Hopped 29 | . . . . . . . . . . . . . . . . . . . . . . . . . . . . . . . . . 4 . 14 . 6 5 Cave-ins Triggered 2 | . . . . . . . . . . . . . . . . . . . . . . . . . . . . . . . . . . . . . . 2 Teleports 1 | . . . . . . . . . . . . . . . . . . . . . . . . . . . . . . . . . . 1 . . . . Exploration Rate (%) 64 | 4 51 64 44 88 61 98 23 96 43 92 91 85 57 92 24 73 38 65 91 72 73 26 67 55 81 94 13 86 82 81 62 20 88 99 66 73 20 79 Regions Visited 38 Branch Regions 26 Pre-discovered Areas 17 | . 2 1 1 1 . . . 3 . 2 . 3 . 1 . . . . 1 1 . . . 1 . . . . . . . . . . . . . . Known Exits Taken 14 | . 1 . . . . . 1 1 1 . . . . 1 . . 1 1 . . 1 1 . . . 1 1 . . . . 1 . . 1 . 1 . Unknown Exits Taken 22 | 1 . 1 1 1 1 1 . . . 1 1 1 1 . . . . . 1 1 . . 1 1 1 . . 1 1 1 1 . 1 1 . 1 . . Scrap Searched 29 | . . 1 . 1 . 2 . . . 1 4 4 . 1 . . . 2 3 . 2 . 2 1 . 5 . . . . . . . . . . . . Spaces Dug 127 | . . . . . . . . . . . . 2 . 1 1 . 4 . . 1 . 2 . . . . 2 2 1 . 1 . 20 . 4 1 2 83 Terrain Destroyed 734 | . . . . . . . . 14 . . 6 2 1 2 1 . 4 . . 1 . 29 . . 39 7 2 2 11 . 366 . 20 . 4 1 2 220 Melee 53 | . . . . . . . . . . . . 2 . 1 1 . 4 . . 1 . 2 . . . . 2 2 1 . 1 . 20 . 4 1 2 9 Projectile 121 | . . . . . . . . . . . . . . . . . . . . . . . . . . . . . . . . . . . . . . 121 AOE 560 | . . . . . . . . 14 . . 6 . 1 1 . . . . . . . 27 . . 39 7 . . 10 . 365 . . . . . . 90 Terrain Rammed . | . . . . . . . . . . . . . . . . . . . . . . . . . . . . . . . . . . . . . . . Walls Destroyed . | . . . . . . . . . . . . . . . . . . . . . . . . . . . . . . . . . . . . . . . Machines Disabled . | . . . . . . . . . . . . . . . . . . . . . . . . . . . . . . . . . . . . . . . Actions | -11 -10 -10 -9 -9 -9 -8 -8 -8 -7 -7 -7 -7 -7 -6 -6 -6 -6 -6 -6 -6 -5 -5 -5 -5 -5 -4 -4 -4 -4 -4 -4 -3 -3 -3 -2 -2 -1 -1 --------- Run | Scr Mat Min Mat Min Exi Min Mat Sto Fac Low Low Zio Dee Pro Fac Was Fac Low Low Dat Pro Fac Upp Upp War Pro Fac Ext Cet Arc Hub Res Arm Lab Res Tes Acc Com Total 41843 | 51 498 372 559 705 201 555 204 1660 1817 1142 724 996 546 1013 662 144 1408 845 741 80 635 1158 415 439 910 728 521 1244 295 140 693 947 1940 220 2911 779 505 12440 Wait 5375 | 3 42 36 57 53 . 11 16 355 231 118 52 21 34 91 22 19 102 349 38 . 19 80 . 1 39 15 16 159 55 18 70 117 160 6 241 34 11 2684 Move 31914 | 41 346 300 438 585 201 512 150 1150 1445 922 620 944 453 837 571 124 1153 479 659 79 546 894 405 427 722 672 447 860 198 109 564 721 1572 186 2498 681 467 7936 Hop 22 | . . . . . . . . . . . . . . . . . . . . . . . . . . . . . . . . . 4 . 9 . 4 5 Pick Up 128 | . 1 2 2 . . . 3 9 1 3 3 1 3 3 1 . 5 2 3 . 4 7 . . 1 1 5 2 . . 2 4 2 1 5 2 2 48 Fast Attach 194 | 5 10 1 4 . . . . 14 11 6 3 5 6 . 1 . 4 . . . . 15 . . 9 2 2 2 . . 3 1 18 10 12 16 . 34 Attach 26 | . . . . . . . . 2 2 2 . . 1 . . . 2 . . . 1 1 . . . . 1 . . . 1 . 1 . 1 2 . 9 Detach 8 | . . . . . . . . 1 . 1 1 . . . . . . . . . . . . . 1 . . . . . . . . . . 1 . 3 Swap 56 | . 2 2 2 1 . . 1 3 1 . . 2 . . . . 3 1 . . . 4 . . 2 . . . 1 . 1 1 6 1 . . 1 21 Drop 293 | . 4 2 7 2 . . 2 19 12 8 4 8 8 2 1 . 6 1 3 . 3 22 . . 10 3 7 3 . . 5 6 24 8 13 17 2 81 Fire 1101 | 2 68 17 36 36 . 23 12 69 52 1 1 . 2 1 1 1 1 1 1 . 6 2 1 2 51 5 . 1 1 . 3 . 1 5 1 . 3 694 Melee 1028 | . . . . . . . . . 19 35 18 14 19 43 43 . 80 7 21 1 23 64 2 4 10 12 23 49 14 4 29 50 73 3 72 21 8 267 Ram . | . . . . . . . . . . . . . . . . . . . . . . . . . . . . . . . . . . . . . . . Kick . | . . . . . . . . . . . . . . . . . . . . . . . . . . . . . . . . . . . . . . . Crush . | . . . . . . . . . . . . . . . . . . . . . . . . . . . . . . . . . . . . . . . Escape Stasis 76 | . . . . . . . . . . . . . . . . . . . . . . 10 . . . . . 1 . . 4 2 . . . . . 59 Rewire 203 | . . . . . . . . 1 . 16 . . . . . . . . . . . . . . . . . 150 . . . . 36 . . . . . Trap . | . . . . . . . . . . . . . . . . . . . . . . . . . . . . . . . . . . . . . . . Miscellaneous 1419 | . 25 12 13 28 . 9 20 37 43 30 22 1 20 36 22 . 52 5 16 . 33 59 7 5 65 18 20 17 26 9 11 45 43 . 59 5 7 599 Route ------- -11/Scrapyard -10/Materials (discovered 3 exits: *Mat x2 / *Min) -10/Mines (discovered 2 exits: *Mat x2) -9/Materials -9/Mines (discovered 2 exits: *Mat / *Exi) -9/Exiles -8/Mines (discovered 2 exits: *Mat x2) -8/Materials -8/Storage -7/Factory (discovered 4 exits: *Fac x2 / *Low x2) -7/Lower Caves -7/Lower Caves (discovered 2 exits: *Fac / *Zio) -7/Zion (discovered 2 exits: [*Dee] / [*Pro]) -7/Deep Caves -6/Proximity Caves -6/Factory (discovered 6 exits: Fac x4 / Low x2) -6/Waste -6/Factory (discovered 2 exits: *Low x2) -6/Lower Caves (discovered 2 exits: *Low / *Dat) -6/Lower Caves (discovered 2 exits: *Fac / *Dat) -6/Data Miner -5/Proximity Caves -5/Factory (discovered 3 exits: Fac / *Upp x2) -5/Upper Caves (discovered 2 exits: [*Upp] / *War) -5/Upper Caves -5/Warlord -4/Proximity Caves -4/Factory (discovered 4 exits: *Upp x2 / *Ext x2) -4/Extension (discovered 2 exits: *Res / *Cet) -4/Cetus (discovered 2 exits: *Res / *Arc) -4/Archives (discovered 2 exits: *Hub x2) -4/Hub_04(d) (discovered 2 exits: *Res x2) -3/Research -3/Armory (discovered 2 exits: *Res / *Lab) -3/Lab -2/Research (discovered 4 exits: *Acc x2 / *Tes x2) -2/Testing -1/Access -1/Command 0b10 Command History --------- Turn | Location | Event 1 | -11/Scrapyard | Upgraded with Propulsion slot (x1) 1 | -11/Scrapyard | Upgraded with Utility slot (x1) 1 | -11/Scrapyard | Upgraded with Weapon slot (x1) 12 | -11/Scrapyard | Discovered new exit (range 17) 48 | -11/Scrapyard | Entered Materials 282 | -10/Materials | Reached level 2 317 | -10/Materials | Build established: Mutant 401 | -10/Materials | Discovered new exit (range 17) 540 | -10/Materials | Identified exit to Mines 546 | -10/Materials | Discovered new exit (range 8) 591 | -10/Materials | Entered Mines 604 | -10/Mines | Found a damaged Exp. Sensor Array with a note attached 634 | -10/Mines | Discovered new exit (range 13) 670 | -10/Mines | Reached level 3 680 | -10/Mines | Upgraded with Weapon slot (x1) 724 | -10/Mines | Escorted by a lone wolf Derelict 744 | -10/Mines | Learned location of Storage (-8) 871 | -10/Mines | Discovered new exit (range 7) 900 | -10/Mines | Assembled infested the area 905 | -10/Mines | Assisted by a Guerilla fighting off Assembled 935 | -10/Mines | Entered Materials 937 | -9/Materials | Reached level 4 982 | -9/Materials | Build established: Gunner 1196 | -9/Materials | Upgraded with Utility slot (x1) 1204 | -9/Materials | Discovered new exit (range 8) 1289 | -9/Materials | Reached level 5 1482 | -9/Materials | Entered Mines 1484 | -9/Mines | Reached level 6 1520 | -9/Mines | Met a Derelict bent on vengeance 1610 | -9/Mines | Reached level 7 1648 | -9/Mines | Destroyed 7 combat bots 1665 | -9/Mines | Discovered new exit (range 6) 1800 | -9/Mines | Deemed a non-threat by the Exiles lab entrance 1800 | -9/Mines | Discovered new exit (range 5) 1840 | -9/Mines | Joined a pair of Derelicts in attacking an 0b10 outpost 2029 | -9/Mines | Reached level 8 2069 | -9/Mines | Entered Exiles 2069 | -9/Exiles | Found Exiles lab abandoned 2196 | -9/Exiles | Discovered new exit (range 10) 2202 | -9/Exiles | Entered Mines 2345 | -8/Mines | Reached level 9 2388 | -8/Mines | Destroyed 8 combat bots 2501 | -8/Mines | Discovered new exit (range 7) 2506 | -8/Mines | Discovered new exit (range 9) 2635 | -8/Mines | Entered Materials 2637 | -8/Materials | Reached level 10 2770 | -8/Materials | Identified exit to Storage 2798 | -8/Materials | Reached level 11 2814 | -8/Materials | Entered Storage 2845 | -8/Storage | Learned location of Armory (-3) 2907 | -8/Storage | Upgraded with Utility slot (x1) 2938 | -8/Storage | Reached level 12 3124 | -8/Storage | Met 01-MTF 3131 | -8/Storage | Upgraded with Propulsion slot (x1) 3134 | -8/Storage | Upgraded with Propulsion slot (x1) 3351 | -8/Storage | Identified exit to Factory 3437 | -8/Storage | Reached level 13 3780 | -8/Storage | Build established: Mutant 3933 | -8/Storage | Destroyed 01-MTF 3950 | -8/Storage | Upgraded with Utility slot (x1) 4000 | -8/Storage | Entered Factory 4001 | -7/Factory | Identified exit to Lower Caves 4002 | -7/Factory | Reached level 14 4115 | -7/Factory | Discovered new exit (range 16) 4163 | -7/Factory | Found Powered Armor 4241 | -7/Factory | Build established: Gunner 4548 | -7/Factory | Reached level 15 4565 | -7/Factory | Discovered new exit (range 14) 4581 | -7/Factory | Upgraded with Utility slot (x1) 4766 | -7/Factory | Garrison activated, responded to threat 4800 | -7/Factory | First assault squad dispatched 5128 | -7/Factory | Fabricated Hvy. Shock Bomb Launcher (x1) 5151 | -7/Factory | Entered Lower Caves 5163 | -7/Lower Caves | Build established: Mutant 5172 | -7/Lower Caves | Upgraded with Weapon slot (x1) 5228 | -7/Lower Caves | Learned location of Zion (-7) 5365 | -7/Lower Caves | Found Imp. Powered Armor 5456 | -7/Lower Caves | Discovered new exit (range 14) 5490 | -7/Lower Caves | Attracted the attention of an 0b10 outpost 5499 | -7/Lower Caves | Reached level 16 5719 | -7/Lower Caves | Encountered a Warlord checkpoint 5844 | -7/Lower Caves | Entered another Lower Caves area 5844 | -7/Lower Caves | Accompanied by 2 allies 5877 | -7/Lower Caves | Discovered new exit (range 8) 5882 | -7/Lower Caves | Build established: Scavenger-Mutant 5907 | -7/Lower Caves | Learned Factory terminal intel 5998 | -7/Lower Caves | Spotted B-75 Beast 6000 | -7/Lower Caves | Upgraded with Weapon slot (x1) 6034 | -7/Lower Caves | Destroyed B-75 Beast 6114 | -7/Lower Caves | Encountered a Warlord checkpoint 6166 | -7/Lower Caves | Discovered new exit (range 16) 6168 | -7/Lower Caves | Learned Factory terminal intel 6248 | -7/Lower Caves | Entered Zion 6248 | -7/Zion | Accompanied by 2 allies 6277 | -7/Zion | Learned location of 1 exit from Proximity Caves 6285 | -7/Zion | Discovered new exit (range 13) 6311 | -7/Zion | System corruption cleaned by Quarantine Array 6324 | -7/Zion | Learned location of Quarantine (-3) 6325 | -7/Zion | Learned Factory stockpile data 6458 | -7/Zion | Learned location of Warlord (-5) 6476 | -7/Zion | Learned Factory recycling unit intel 6499 | -7/Zion | Found Prototype Processor 6499 | -7/Zion | Identified Exp. Terrain Scan Processor 6501 | -7/Zion | Found Prototype Processor 6501 | -7/Zion | Identified Exp. Armor Integrity Analyzer 6522 | -7/Zion | Found Prototype Hackware 6582 | -7/Zion | Found CR-A16's Pointy Stick 6724 | -7/Zion | Discovered new exit (range 5) 6724 | -7/Zion | Saw the warning signs outside the Deep Caves entrance 6741 | -7/Zion | Entered Deep Caves 6741 | -7/Deep Caves | Accompanied by 2 allies 6773 | -7/Deep Caves | Z-Facility disabled 6797 | -7/Deep Caves | Attacked by Z-Imprinter 6820 | -7/Deep Caves | Reached level 17 6820 | -7/Deep Caves | Destroyed Z-Imprinter 6842 | -7/Deep Caves | Found Prototype Protection 6842 | -7/Deep Caves | Identified Zio. Weapon Casing 6954 | -7/Deep Caves | Upgraded with Utility slot (x1) 7043 | -7/Deep Caves | Exposed GOLEM chamber 7059 | -7/Deep Caves | Discovered new exit (range 6) 7062 | -7/Deep Caves | Entered Proximity Caves 7063 | -6/Proximity Caves | Identified exit to Factory 7233 | -6/Proximity Caves | Acquired the password to a Derelict Tinkerer's latest research 7352 | -6/Proximity Caves | Attracted the attention of an 0b10 checkpoint 7361 | -6/Proximity Caves | Reached level 18 7378 | -6/Proximity Caves | Learned Factory garrison access intel 7392 | -6/Proximity Caves | Attracted the attention of an 0b10 base 7514 | -6/Proximity Caves | Learned Extension trap positions 7514 | -6/Proximity Caves | Learned location of 2 exits from Lower Caves 7668 | -6/Proximity Caves | Entered Factory 7669 | -6/Factory | Identified exit to Lower Caves 7671 | -6/Factory | Loaded intel: 20 terminal locations 7672 | -6/Factory | Loaded intel: 6 recycling unit locations 7673 | -6/Factory | Loaded intel: 4 garrison access locations 7794 | -6/Factory | Reached level 19 7991 | -6/Factory | Identified exit to Factory 8066 | -6/Factory | Sucked down chute 8066 | -6/Factory | Entered Waste 8067 | -6/Waste | Met a frightened Derelict 8078 | -6/Waste | Spotted C-40 Crusher 8081 | -6/Waste | EMP discharged 8084 | -6/Waste | Spotted C-40 Crusher 8089 | -6/Waste | Spotted C-40 Crusher 8090 | -6/Waste | Spotted C-40 Crusher 8124 | -6/Waste | Spotted C-40 Crusher 8137 | -6/Waste | Spotted C-40 Crusher 8139 | -6/Waste | Discovered new exit (range 10) 8143 | -6/Waste | Entered Factory 8145 | -6/Factory | Loaded intel: 20 terminal locations 8219 | -6/Factory | Spotted B-75 Beast 8310 | -6/Factory | Discovered exit to Lower Caves (range 9) 8368 | -6/Factory | Identified Exp. System Shield 8539 | -6/Factory | Exp. System Shield fried by hacking feedback 8739 | -6/Factory | System corruption reached 10% 8898 | -6/Factory | Reached level 20 9014 | -6/Factory | Entered Lower Caves 9015 | -6/Lower Caves | Identified exit to Lower Caves 9304 | -6/Lower Caves | Attracted the attention of an 0b10 checkpoint 9600 | -6/Lower Caves | A Derelict revealed a hidden shortcut to meet someone special 9606 | -6/Lower Caves | Entered another Lower Caves area 9632 | -6/Lower Caves | Attracted the attention of an 0b10 checkpoint 9662 | -6/Lower Caves | Encountered a Warlord checkpoint 9752 | -6/Lower Caves | Learned Factory terminal intel 9903 | -6/Lower Caves | Discovered new exit (range 12) 10009 | -6/Lower Caves | Entered Data Miner 10009 | -6/Data Miner | Discovered new exit (range 6) 10017 | -6/Data Miner | Met Data Miner 10028 | -6/Data Miner | Learned location of Section 7 (-3) 10028 | -6/Data Miner | Acquired the access code to Warlord's prototype stash 10034 | -6/Data Miner | Received God Mode back door access code from Data Miner 10047 | -6/Data Miner | Entered Proximity Caves 10049 | -5/Proximity Caves | Reached level 21 10057 | -5/Proximity Caves | Upgraded with Utility slot (x1) 10099 | -5/Proximity Caves | Escorted by Enhanced Grunt 10133 | -5/Proximity Caves | Spotted B-75 Beast 10141 | -5/Proximity Caves | Revealed the true nature of CR-A16's Pointy Stick 10143 | -5/Proximity Caves | Destroyed B-75 Beast 10232 | -5/Proximity Caves | Learned location of 1 exit from Factory 10281 | -5/Proximity Caves | Learned Factory stockpile data 10288 | -5/Proximity Caves | Attracted the attention of an 0b10 base 10340 | -5/Proximity Caves | Learned Armory terminal intel 10340 | -5/Proximity Caves | Learned Extension stockpile data 10350 | -5/Proximity Caves | Destroyed 7 combat bots 10380 | -5/Proximity Caves | Discovered exit to Factory (range 8) 10395 | -5/Proximity Caves | Reached level 22 10415 | -5/Proximity Caves | Entered Factory 10416 | -5/Factory | Identified exit to Upper Caves 10417 | -5/Factory | Identified exit to Factory 10419 | -5/Factory | Loaded intel: 20 terminal locations 10612 | -5/Factory | Incoming assault squad redirected 10648 | -5/Factory | Reached level 23 10664 | -5/Factory | Fabricated Exp. Transmission Jammer (x1) 10690 | -5/Factory | Upgraded with Power slot (x1) 10690 | -5/Factory | Upgraded with Utility slot (x1) 10715 | -5/Factory | First assault squad dispatched 10735 | -5/Factory | Incoming assault squad redirected 10809 | -5/Factory | Spotted B-75 Beast 10887 | -5/Factory | Destroyed B-75 Beast 10948 | -5/Factory | Fabricated Cmb. Gravmag System (x2) 11018 | -5/Factory | Local fabrication network quarantined 11037 | -5/Factory | Incoming assault squad redirected 11038 | -5/Factory | Incoming assault squad redirected 11115 | -5/Factory | High security lockdown imminent 11171 | -5/Factory | Entered Upper Caves 11289 | -5/Upper Caves | Spotted B-75 Beast 11297 | -5/Upper Caves | Destroyed B-75 Beast 11317 | -5/Upper Caves | A Derelict revealed a hidden shortcut to "reach the base" 11322 | -5/Upper Caves | Discovered new exit (range 10) 11400 | -5/Upper Caves | Entered another Upper Caves area 11540 | -5/Upper Caves | Encountered a Warlord checkpoint 11540 | -5/Upper Caves | Discovered new exit (range 10) 11559 | -5/Upper Caves | Attracted the attention of an 0b10 checkpoint 11563 | -5/Upper Caves | Reached level 24 11646 | -5/Upper Caves | Entered Warlord 11665 | -5/Warlord | System corruption cleaned by Quarantine Array 11775 | -5/Warlord | Visited the Vortex Lab 11780 | -5/Warlord | Met EX-DEC 11783 | -5/Warlord | Found Prototype Piercing Weapon 11783 | -5/Warlord | Identified Vortex Lance 11795 | -5/Warlord | Warlord's base attacked by MAIN.C 11876 | -5/Warlord | Met Warlord 11882 | -5/Warlord | Opened Warlord's prototype stash 11887 | -5/Warlord | Upgraded with Propulsion slot (x1) 11896 | -5/Warlord | Found Prototype Processor 11896 | -5/Warlord | Identified Spectral Analyzer 11908 | -5/Warlord | Found Prototype Reactor 11908 | -5/Warlord | Identified Vortex Chain Reactor 12011 | -5/Warlord | Destroyed 16 combat bots 12082 | -5/Warlord | Discovered new exit (range 16) 12087 | -5/Warlord | Destroyed 12 combat bots 12096 | -5/Warlord | Spotted Executioner 12112 | -5/Warlord | Warlord forces counterattacked 12118 | -5/Warlord | P-70 Sage assimilated allied U1-G51(g) 12197 | -5/Warlord | Spotted Striker 12217 | -5/Warlord | Destroyed Striker 12250 | -5/Warlord | Destroyed 7 combat bots 12260 | -5/Warlord | Entered Proximity Caves 12262 | -4/Proximity Caves | Reached level 25 12324 | -4/Proximity Caves | Spotted B-86 Titan 12336 | -4/Proximity Caves | Destroyed B-86 Titan 12401 | -4/Proximity Caves | Attracted the attention of an 0b10 checkpoint 12527 | -4/Proximity Caves | Learned Research terminal intel 12560 | -4/Proximity Caves | Discovered exit to Factory (range 7) 12645 | -4/Proximity Caves | Entered Factory 12686 | -4/Factory | Identified exit to Upper Caves 12686 | -4/Factory | Identified exit to Extension 12818 | -4/Factory | Reached level 26 12845 | -4/Factory | Upgraded with Utility slot (x1) 12895 | -4/Factory | First assault squad dispatched 12948 | -4/Factory | Entered Extension 12949 | -4/Extension | Loaded intel: 23 trap records 12985 | -4/Extension | Rescued a captive Derelict 12987 | -4/Extension | Rescued A7 13075 | -4/Extension | Rescued a captive Derelict 13089 | -4/Extension | Rescued a captive Derelict 13093 | -4/Extension | Rescued a captive Derelict 13135 | -4/Extension | Spotted B-86 Titan 13139 | -4/Extension | Rescued a captive Derelict 13140 | -4/Extension | Rescued a captive Derelict 13153 | -4/Extension | Spotted B-86 Titan 13171 | -4/Extension | Allies destroyed B-86 Titan 13195 | -4/Extension | Destroyed B-86 Titan 13199 | -4/Extension | Extracted ID and sensor layout for unrecognized location from A7's data core 13423 | -4/Extension | Disrupted transfer network 13497 | -4/Extension | Rescued a captive Derelict 13497 | -4/Extension | Rescued a captive Derelict 13511 | -4/Extension | Rescued a captive Derelict 13578 | -4/Extension | Rescued a captive Derelict 13579 | -4/Extension | Build established: Commander-Mutant 13579 | -4/Extension | Rescued a captive Derelict 13646 | -4/Extension | Rescued a captive Derelict 13647 | -4/Extension | Rescued a captive Derelict 13698 | -4/Extension | First assault squad dispatched 13722 | -4/Extension | Reached level 27 13743 | -4/Extension | Discovered new exit (range 10) 13745 | -4/Extension | Discovered new exit (range 6) 13782 | -4/Extension | Entered Cetus 13782 | -4/Cetus | Accompanied by 14 allies 13790 | -4/Cetus | Spotted Cetus Guard 13790 | -4/Cetus | Spotted Cetus Guard 13790 | -4/Cetus | Spotted Cetus Guard 13790 | -4/Cetus | Spotted Cetus Guard 13799 | -4/Cetus | Destroyed Cetus Guard 13804 | -4/Cetus | Destroyed Cetus Guard 13809 | -4/Cetus | Destroyed Cetus Guard 13811 | -4/Cetus | Destroyed Cetus Guard 13872 | -4/Cetus | Found a strange terminal 13878 | -4/Cetus | Discovered new exit (range 17) 13900 | -4/Cetus | Spotted Cetus Guard 13901 | -4/Cetus | Spotted Cetus Guard 13902 | -4/Cetus | Spotted Cetus Guard 13902 | -4/Cetus | Spotted Cetus Guard 13906 | -4/Cetus | Discovered new exit (range 17) 13915 | -4/Cetus | Destroyed Cetus Guard 13915 | -4/Cetus | Destroyed Cetus Guard 13918 | -4/Cetus | Destroyed Cetus Guard 13918 | -4/Cetus | Destroyed Cetus Guard 13920 | -4/Cetus | Met Revision 17 13988 | -4/Cetus | Entered Archives 13988 | -4/Archives | Accompanied by 13 allies 14004 | -4/Archives | Discovered new exit (range 18) 14018 | -4/Archives | Discovered new exit (range 17) 14042 | -4/Archives | Unable to access archive contents 14047 | -4/Archives | Unable to access archive contents 14074 | -4/Archives | Entered Hub_04(d) 14074 | -4/Hub_04(d) | Accompanied by 11 allies 14150 | -4/Hub_04(d) | Spotted B-86 Titan 14171 | -4/Hub_04(d) | Discovered new exit (range 8) 14243 | -4/Hub_04(d) | Discovered new exit (range 7) 14368 | -4/Hub_04(d) | Garrison activated, responded to threat 14403 | -4/Hub_04(d) | Reached level 28 14470 | -4/Hub_04(d) | Network Hub disabled 14484 | -4/Hub_04(d) | Network Hub disabled 14497 | -4/Hub_04(d) | Entered Research 14498 | -3/Research | Loaded intel: 19 terminal locations 14511 | -3/Research | Discovered new exit (range 8) 14570 | -3/Research | Found Prototype Slashing Weapon 14570 | -3/Research | Identified Centrium Greatsword 14629 | -3/Research | Fabricated Impulse Thruster Array? 14697 | -3/Research | Revision forces began assault on 0b10 14788 | -3/Research | Reached level 29 14825 | -3/Research | Met up with Revision 17++ 14876 | -3/Research | Build established: Gladiator 15075 | -3/Research | Identified exit to Armory 15126 | -3/Research | Entered Armory 15127 | -3/Armory | Loaded intel: 13 terminal locations 15314 | -3/Armory | Found Gamma Bomb Array 15473 | -3/Armory | Reached level 30 15554 | -3/Armory | Discovered new exit (range 3) 15582 | -3/Armory | Upgraded with Propulsion slot (x1) 15585 | -3/Armory | Upgraded with Propulsion slot (x1) 15619 | -3/Armory | Discovered new exit (range 4) 15662 | -3/Armory | Build established: Infiltrator-Gladiator 16126 | -3/Armory | First assault squad dispatched 16230 | -3/Armory | Entered Lab 16232 | -3/Lab | Discovered new exit (range 9) 16236 | -3/Lab | Hidden lab's door opened automatically 16236 | -3/Lab | Sensor layout match revealed 16236 | -3/Lab | Unable to decrypt terminal 16237 | -3/Lab | Gained access to the hidden lab's interior 16237 | -3/Lab | Unable to decrypt terminal 16238 | -3/Lab | Unable to decrypt terminal 16244 | -3/Lab | Found Alien Artifact 16244 | -3/Lab | Identified Transdimensional Reconstructor 16244 | -3/Lab | Warped through subspace 16255 | -3/Lab | Found Alien Artifact 16255 | -3/Lab | Identified Integrated Dissipator 16255 | -3/Lab | Installed Integrated Dissipator, increased core heat dissipation (+20) 16260 | -3/Lab | Found Alien Artifact 16260 | -3/Lab | Identified Core Regenerator 16260 | -3/Lab | Used Core Regenerator, restored core integrity (+184) 16272 | -3/Lab | Found Prototype Energy Gun 16272 | -3/Lab | Identified Tachyon Dispersion Ray 16276 | -3/Lab | Unable to decrypt terminal 16281 | -3/Lab | Found Prototype Protection 16281 | -3/Lab | Identified Exp. Powered Armor 16289 | -3/Lab | Found Prototype Energy Cannon 16289 | -3/Lab | Identified Potential Cannon 16314 | -3/Lab | Found Prototype Hackware 16327 | -3/Lab | Entered Research 16327 | -2/Research | Warlord forces began assault on 0b10 16329 | -2/Research | Reached level 31 16335 | -2/Research | Found Prototype Processor 16335 | -2/Research | Identified Exp. Core Analyzer 16355 | -2/Research | Spotted B-90 Cyclops 16357 | -2/Research | Destroyed B-90 Cyclops 16398 | -2/Research | Identified exit to Testing 16437 | -2/Research | Research machine network offline 16554 | -2/Research | Build established: Sprinter 16607 | -2/Research | Spotted Striker 16619 | -2/Research | Spotted Striker 16626 | -2/Research | Destroyed Striker 16648 | -2/Research | Destroyed Striker 16706 | -2/Research | Discovered new exit (range 4) 16733 | -2/Research | Spotted Striker 16750 | -2/Research | Borebot progress halted 16802 | -2/Research | Spotted Executioner 16802 | -2/Research | Spotted Striker 16803 | -2/Research | Spotted Striker 16824 | -2/Research | Reached level 32 16824 | -2/Research | Met up with Warlord 16828 | -2/Research | Upgraded with Utility slot (x1) 16829 | -2/Research | Borebot progress halted 16850 | -2/Research | Destroyed Striker 16914 | -2/Research | Spotted Striker 17096 | -2/Research | Spotted Executioner 17096 | -2/Research | Spotted Executioner 17107 | -2/Research | Destroyed Executioner 17114 | -2/Research | Destroyed Executioner 17248 | -2/Research | Spotted Striker 17254 | -2/Research | Destroyed Striker 17295 | -2/Research | Discovered new exit (range 7) 17305 | -2/Research | Destroyed 7 combat bots 17387 | -2/Research | Found Prototype Device 17387 | -2/Research | Identified Thermal Barrier 17468 | -2/Research | Warlord invited to help at Command 17525 | -2/Research | Entered Testing 17575 | -2/Testing | Spotted PH-3UFSSXH3QP 17576 | -2/Testing | Spotted Striker 17577 | -2/Testing | Spotted Striker 17582 | -2/Testing | Found Prototype Hackware 17594 | -2/Testing | Found Vibroblade 17620 | -2/Testing | Found Prototype Launcher 17620 | -2/Testing | Identified Hellfire Missile Launcher 17624 | -2/Testing | Found Prototype Processor 17624 | -2/Testing | Identified Exp. Melee Analysis Suite 17626 | -2/Testing | Found Exp. Melee Analysis Suite 17702 | -2/Testing | Fabricated P-70 Sage? 17728 | -2/Testing | Local fabrication network quarantined 17807 | -2/Testing | First assault squad dispatched 17809 | -2/Testing | Found Prototype Ballistic Gun 17819 | -2/Testing | Discovered new exit (range 17) 17820 | -2/Testing | Spotted PP-LNN30H7XCK 17824 | -2/Testing | Entered Access 17826 | -1/Access | Reached level 33 17838 | -1/Access | Identified Ghost Barrier 17839 | -1/Access | Reached level 34 17942 | -1/Access | Identified exit to Command 17974 | -1/Access | Garrison activated, responded to threat 17994 | -1/Access | Entered Command 18017 | -1/Command | Reached level 35 18129 | -1/Command | Build established: Hacker-Sprinter 18158 | -1/Command | Destroyed 8 combat bots 18217 | -1/Command | Spotted Executioner 18227 | -1/Command | Spotted Alpha 7 18229 | -1/Command | Destroyed Executioner 18229 | -1/Command | Spotted Executioner 18237 | -1/Command | Destroyed Alpha 7 18243 | -1/Command | Destroyed Executioner 18264 | -1/Command | Destroyed 10 combat bots 18464 | -1/Command | Destroyed 7 combat bots 18498 | -1/Command | Disengaged cave seal 18498 | -1/Command | Derelicts emerged from the dark tunnel 18498 | -1/Command | Welcomed Warlord to Command 18526 | -1/Command | Incoming investigation squad redirected 18528 | -1/Command | Spotted B-99 Colossus 18529 | -1/Command | Destroyed B-99 Colossus 18576 | -1/Command | Disengaged cave seal 18576 | -1/Command | Derelicts emerged from the dark tunnel 18615 | -1/Command | Incoming investigation squad redirected 18624 | -1/Command | Incoming investigation squad redirected 18633 | -1/Command | Reached level 36 18776 | -1/Command | First assault squad dispatched 18793 | -1/Command | Incoming assault squad redirected 18796 | -1/Command | Incoming assault squad redirected 18826 | -1/Command | High security lockdown imminent 18892 | -1/Command | Destroyed 10 combat bots 18906 | -1/Command | High security lockdown engaged 18957 | -1/Command | Found Prototype Slashing Weapon 18957 | -1/Command | Identified Particle Cleaver 19091 | -1/Command | Upgraded with Utility slot (x1) 19111 | -1/Command | Identified Hyp. Multirail 19171 | -1/Command | Spotted Executioner 19173 | -1/Command | Destroyed Executioner 19184 | -1/Command | Spotted Investigator 19185 | -1/Command | Destroyed Investigator 19203 | -1/Command | Spotted M Guard 19203 | -1/Command | Spotted M Guard 19203 | -1/Command | Spotted Combat Programmer 19231 | -1/Command | Spotted Striker 19232 | -1/Command | Spotted Striker 19234 | -1/Command | Spotted Striker 19242 | -1/Command | Destroyed Striker 19249 | -1/Command | Spotted Executioner 19250 | -1/Command | Spotted Investigator 19252 | -1/Command | Scanned by Researcher 19254 | -1/Command | Destroyed Investigator 19266 | -1/Command | Destroyed Striker 19278 | -1/Command | Destroyed Executioner 19317 | -1/Command | Destroyed 16 combat bots 19412 | -1/Command | Spotted Executioner 19412 | -1/Command | Spotted Striker 19412 | -1/Command | Spotted Executioner 19412 | -1/Command | Spotted Striker 19418 | -1/Command | Destroyed Executioner 19419 | -1/Command | Destroyed Striker 19419 | -1/Command | Destroyed Executioner 19420 | -1/Command | Destroyed Striker 19424 | -1/Command | Reached level 37 19434 | -1/Command | Spotted Striker 19440 | -1/Command | Destroyed Striker 19469 | -1/Command | Destroyed 23 combat bots 19644 | -1/Command | Spotted Executioner 19644 | -1/Command | Spotted Striker 19644 | -1/Command | Spotted Executioner 19653 | -1/Command | Spotted Investigator 19653 | -1/Command | Spotted Executioner 19654 | -1/Command | Spotted Striker 19656 | -1/Command | Spotted Executioner 19657 | -1/Command | Spotted Executioner 19662 | -1/Command | Destroyed Striker 19662 | -1/Command | Destroyed Investigator 19662 | -1/Command | Destroyed Executioner 19664 | -1/Command | Destroyed Striker 19665 | -1/Command | Spotted Executioner 19665 | -1/Command | Spotted Executioner 19667 | -1/Command | Destroyed Executioner 19668 | -1/Command | Destroyed Executioner 19668 | -1/Command | Spotted Executioner 19668 | -1/Command | Spotted Executioner 19673 | -1/Command | Spotted Striker 19675 | -1/Command | Destroyed Executioner 19675 | -1/Command | Spotted Striker 19675 | -1/Command | Warlord destroyed during the assault 19683 | -1/Command | Destroyed Striker 19687 | -1/Command | Destroyed Executioner 19688 | -1/Command | Spotted Striker 19691 | -1/Command | Destroyed Striker 19693 | -1/Command | Destroyed Striker 19701 | -1/Command | Destroyed Executioner 19706 | -1/Command | Crushed by falling debris 19706 | -1/Command | Core integrity fell below 50% 19712 | -1/Command | Crushed by falling debris 19729 | -1/Command | Destroyed Executioner 19750 | -1/Command | Destroyed 36 combat bots 19766 | -1/Command | Found Prototype Ballistic Cannon 20025 | -1/Command | Spotted Executioner 20025 | -1/Command | Spotted Executioner 20032 | -1/Command | Destroyed Executioner 20034 | -1/Command | Destroyed Executioner 20273 | -1/Command | Identified Blast Cannon 20350 | -1/Command | Build established: Scavenger-Mutant 20721 | -1/Command | Spotted Alpha 7 20721 | -1/Command | Spotted Striker 20721 | -1/Command | Spotted Striker 20721 | -1/Command | Spotted Executioner 20721 | -1/Command | Spotted Executioner 20740 | -1/Command | Destroyed Striker 20749 | -1/Command | Destroyed Alpha 7 20751 | -1/Command | Destroyed Executioner 20791 | -1/Command | Found Prototype Device 20791 | -1/Command | Identified Adv. Kinecellerator 20808 | -1/Command | Spotted B-99 Colossus 20871 | -1/Command | Spotted B-99 Colossus 20948 | -1/Command | Destroyed B-99 Colossus 20985 | -1/Command | Destroyed Executioner 20993 | -1/Command | Discovered new exit (range 7) 20995 | -1/Command | Destroyed B-99 Colossus 21065 | -1/Command | Found Adv. Kinecellerator 21194 | -1/Command | Spotted Combat Programmer 21197 | -1/Command | Destroyed Combat Programmer 21201 | -1/Command | Destroyed Combat Programmer 21746 | -1/Command | Destroyed M Guard 21804 | -1/Command | Destroyed M Guard 21804 | -1/Command | All MAIN.C guards destroyed 22170 | -1/Command | Reached level 38 22203 | -1/Command | Destroyed 34 combat bots 22327 | -1/Command | Destroyed 23 combat bots 22664 | -1/Command | Destroyed 22 combat bots 22707 | -1/Command | Core integrity fell below 20% 22781 | -1/Command | Destroyed 18 combat bots 22877 | -1/Command | Found Exp. Targeting Computer 22967 | -1/Command | Destroyed 12 combat bots 23086 | -1/Command | Destroyed 12 combat bots 23162 | -1/Command | Destroyed 9 combat bots 23414 | -1/Command | Destroyed 10 combat bots 23527 | -1/Command | Destroyed 7 combat bots 23685 | -1/Command | Destroyed 26 combat bots 23787 | -1/Command | Destroyed 20 combat bots 23850 | -1/Command | Reached level 39 23883 | -1/Command | Destroyed 17 combat bots 24016 | -1/Command | Destroyed 8 combat bots 24162 | -1/Command | Destroyed 11 combat bots 24363 | -1/Command | Destroyed 11 combat bots 24510 | -1/Command | System corruption reached 10% 24550 | -1/Command | Destroyed 25 combat bots 25450 | -1/Command | Destroyed 7 combat bots 25545 | -1/Command | Destroyed 12 combat bots 25687 | -1/Command | Destroyed 11 combat bots 25800 | -1/Command | Destroyed 8 combat bots 26006 | -1/Command | Met MAIN.C 26113 | -1/Command | Destroyed MAIN.C Shell 26115 | -1/Command | MAIN.C activated Command garrisons 26175 | -1/Command | Destroyed MAIN.C 26202 | -1/Command | Interfaced with 0b10 Conduit 26202 | *** | Assimilated 0b10! Last Messages --------------- 26167_ Blast Slug penetrates MAIN.C. 26168_ Acquired 30 matter. 26169_ Blast Slug penetrates Wall. 26169_ Blast Slug penetrates MAIN.C. 26169_ Critical hit. 26170_ Acquired 30 matter. 26171_ Blast Slug penetrates MAIN.C. 26172_ Acquired 30 matter. 26173_ Blast Slug penetrates MAIN.C. 26174_ Acquired 30 matter. 26175_ Blast Slug penetrates MAIN.C. 26175_ Destroyed Prototype Ballistic Gun. 26175_ MAIN.C: "I hope you know you're still going to DIE HERE WITH ME!" 26175_ MAIN.C destroyed. 26176_ Acquired 30 matter. 26179_ Dropped Med. Matter Pod. 26181_ System corrupted: Heat flow error (+276). 26185_ Acquired 10 matter. 26202_ Interfacing with system... [Achievement: MAIN.CPP] Map ----- +----------------------------------------------------+ | #####"""################################ | | ## ############################### | | #### ############################### | | #### ############################### | | #####+##### ############################### | | ## ####################################### | | ## ####################################### | | ## ####################################### | | ## ####################################### | | ## ####################################### | | ####+############################################ | | ############################################ | | ############################################ | | ############################################ | | ################################################## | | #########""""""" """" ############# | | #########"" "" ############# | | #########""""" "" ############# | | #########""""""""""" + | | #########" " """ + | | "" #########"" """""" ; | | """"#########"" """""" ############# | | """"######### " """""" ############# | | "" ######### " "" ############# | | ######### " " ""############# | | #########"""""""""@ """""""############# | | #########"" """""""""############# | | ################ """""""""""############# | | ################ " " " " ############# | | # ######### " " " " ############# | | # " " " """" " ############# | | + """ " " """" ############# | | # " " " " ############# | | # ######### """""""""" " ############# | | ## ########## " """ " """"""""############# | | ## ########## """ " " " ############# | | ## ############################################ | | ## ############################################ | | ## ############################################ | | ## ############################################ | | ### ############################################ | | ### ############################################ | | # ############################################ | | # ############################################ | | # ############################################ | | # ############################################ | | + ############################################ | | # ############################################ | | + ############################################ | | ####/############################################# | +----------------------------------------------------+ Best States ------------- Heat Dissipation 135 Energy Generation 77 Energy Capacity 1700 Matter Stores 300 Matter Capacity 300 Sight Range 18 Terrain Scan Density 1010 ECM Strength 3 Jamming Range 22 Power Amplification 40 Additional Mass Support 16 EM Shielding 3 Armor Coverage 550 Resistance: KI 20 Resistance: TH 50 Resistance: EX 50 Propulsion Shielding 66 Melee Speed Boost 30 Evasion (%) 81 Targeting Accuracy 12 Melee Accuracy 16 Core Analysis 15 Armor Integrity Analysis 90 Matter Filtering 50 Energy Filtering 30 Kinecelleration 50 Offensive Hacking 15 Defensive Hacking 25 Item Schematics ----------------- Cmb. Airjet | -8/Storage | Hacked EM Shield | -8/Storage | Hacked Hvy. Shock Bomb Launcher | -7/Factory | Hacked Fusion Compressor | -7/Factory | Hacked Plasma Flamer | -7/Zion | Free Riot Gun | -7/Zion | Free Corruption Screen | -6/Factory | Downloaded Combat Drone Bay | -6/Data Miner | Free Lgt. Regenerative Plating | -6/Data Miner | Free Cmb. Gravmag System | -6/Data Miner | Free Exp. Cesium-ion Thruster | -6/Data Miner | Free Exp. Transmission Jammer | -6/Data Miner | Free Mni. Smartbomb Launcher | -6/Data Miner | Free Nuclear Pulse Array | -5/Factory | Hacked Impulse Thruster Array | -4/Hub_04(d) | Hacked Nova Cannon | -3/Armory | Hacked Cld. Q-thruster | -2/Testing | Hacked Robot Schematics ------------------ S-27 Virus | -6/Data Miner | Free G-67 Veteran | -6/Data Miner | Free X-72 Disruptor | -6/Data Miner | Free P-70 Sage | -6/Data Miner | Free I-36 Angel | -6/Data Miner | Free I-47 Archangel | -6/Data Miner | Free Fabricated ------------ Hvy. Shock Bomb Launcher | x1 | -7/Factory Exp. Transmission Jammer | x1 | -5/Factory Cmb. Gravmag System | x2 | -5/Factory Impulse Thruster Array | x1 | -3/Research P-70 Sage | x2 | -2/Testing Alien Tech Used ----------------- Transdimensional Reconstructor Integrated Dissipator Core Regenerator Achievements -------------- MAIN.CPP Revolutionary Research Challenges ------------ None RPGLIKE | -11 -10 -10 -9 -9 -9 -8 -8 -8 -7 -7 -7 -7 -7 -6 -6 -6 -6 -6 -6 -6 -5 -5 -5 -5 -5 -4 -4 -4 -4 -4 -4 -3 -3 -3 -2 -2 -1 -1 --------- Run | Scr Mat Min Mat Min Exi Min Mat Sto Fac Low Low Zio Dee Pro Fac Was Fac Low Low Dat Pro Fac Upp Upp War Pro Fac Ext Cet Arc Hub Res Arm Lab Res Tes Acc Com Levels Raised 38 | . 1 1 2 3 . 1 2 2 2 1 . . 1 1 1 . 1 . . . 2 1 . 1 . 1 1 1 . . 1 1 1 . 2 . 2 5 XP Earned 61093 | 3000 2309 1232 3750 3288 139 2350 2104 3219 3340 1000 564 220 570 2179 1232 67 1127 187 507 152 2070 2387 289 233 1009 1157 973 1502 410 230 920 1880 1288 754 2606 709 2005 8135 XP Spent 59510 | 2965 1455 1300 800 . . . 3200 6450 3500 2720 1400 . 2460 1830 . . 1800 . . . 2300 3100 . . 1400 . 2900 . . . . . 5740 . 4050 . . 10140 Upgrades 105 | 15 5 2 1 . . . 5 7 7 7 1 . 5 5 . . 2 . . . 1 2 . . 1 . 1 . . . . . 9 . 5 . . 24 Power Slot 1 | . . . . . . . . . . . . . . . . . . . . . . 1 . . . . . . . . . . . . . . . . Propulsion Slot 6 | 1 . . . . . . . 2 . . . . . . . . . . . . . . . . 1 . . . . . . . 2 . . . . . Utility Slot 11 | 1 . . 1 . . . . 2 1 . . . 1 . . . . . . . 1 1 . . . . 1 . . . . . . . 1 . . 1 Weapon Slot 4 | 1 . 1 . . . . . . . 1 1 . . . . . . . . . . . . . . . . . . . . . . . . . . . Core Integrity 32 | 3 1 . . . . . . . . 4 . . 2 2 . . . . . . . . . . . . . . . . . . . . 2 . . 18 Heat Dissipation 15 | 3 . . . . . . . . . . . . 2 2 . . . . . . . . . . . . . . . . . . 6 . . . . 2 Energy Generation 1 | . . . . . . . . 1 . . . . . . . . . . . . . . . . . . . . . . . . . . . . . . Mass Support 2 | 1 . . . . . . . . . . . . . . . . . . . . . . . . . . . . . . . . 1 . . . . . Inventory Capacity 6 | 1 . 1 . . . . . 2 . . . . . 1 . . 1 . . . . . . . . . . . . . . . . . . . . . Sight Range 2 | 1 . . . . . . . . . . . . . . . . 1 . . . . . . . . . . . . . . . . . . . . . Ranged Accuracy 4 | 1 1 . . . . . 1 . . . . . . . . . . . . . . . . . . . . . . . . . . . . . . 1 Melee Accuracy 6 | . . . . . . . . . 4 2 . . . . . . . . . . . . . . . . . . . . . . . . . . . . Hack Attack % 3 | . . . . . . . . . 1 . . . . . . . . . . . . . . . . . . . . . . . . . 1 . . 1 Hack Defense % 1 | . . . . . . . . . 1 . . . . . . . . . . . . . . . . . . . . . . . . . . . . . KI Resistance % 4 | 1 1 . . . . . 2 . . . . . . . . . . . . . . . . . . . . . . . . . . . . . . . TH Resistance % 4 | 1 1 . . . . . 2 . . . . . . . . . . . . . . . . . . . . . . . . . . . . . . . EX Resistance % 2 | . . . . . . . . . . . . . . . . . . . . . . . . . . . . . . . . . . . 1 . . 1 KI Damage % 1 | . 1 . . . . . . . . . . . . . . . . . . . . . . . . . . . . . . . . . . . . . Protomatter Created 14941 | . 188 57 118 150 . 45 135 238 373 301 129 . 78 383 196 . 528 63 182 . 472 849 93 42 693 229 196 376 190 . 365 430 363 . 564 136 62 6717 Integrity Restored 28377 | . 564 210 213 501 . 135 397 636 764 588 393 4 420 700 490 . 1085 77 305 . 568 1142 110 92 1349 328 370 258 558 170 136 872 859 . 1103 89 132 12759 Core 20922 | . 564 136 116 345 . 135 315 395 478 303 226 . 393 498 490 . 766 60 245 . 454 914 66 78 1038 266 268 180 472 105 89 606 620 . 733 51 80 9437 Parts 7455 | . . 74 97 156 . . 82 241 286 285 167 4 27 202 . . 319 17 60 . 114 228 44 14 311 62 102 78 86 65 47 266 239 . 370 38 52 3322 Protomatter Decayed 11472 | . . 35 36 62 . . . 194 102 90 41 16 . 87 26 . 197 1 90 . 262 330 53 30 269 126 47 488 . 20 479 1287 243 . 3746 262 38 2815 Game ------ Seed DataTransportMagmablaster Manual? 0 Play Time 06:26:19 Cumulative 453.7 hours Start 2021.06.22 @ 07:45:27 End 2021.06.22 @ 14:17:04 Sessions 1 Manual Loads 0 Difficulty Rogue Special Mode Winter2019/RPGLIKE Game No. 167 Rogue 167 Adventurer 0 Explorer 0 Win Type 4 Total 33 Types 24/1/5/1/1/0/0/0/1 Lore% 84 Gallery% 91 Achievement% 79 Wizard Run 0 Options --------- ASCII 0 Keyboard 0 Movement Mouse Keybinds 0 Fullscreen 2 Font 12/Smallcaps Map View 83x54 Tactical HUD 1 Map Filters NONE Filters NONE Steam X RUN: 1c215c24-e9c8-49cc-9701-e357c271be10